Workbook

Sheet Factsheet
F1: Factsheet (Empresas Brasileiras Não Financeiras)
B2: Dta. Últ. Cot.: | E2: =IF(E3="",_xll.ECONOMATICA("IBOV","Date of Last Quote"),E3) -> 2024-09-26 | G2: ← Não Modificar
B3: Dta. Pref. Últ. Cot.: | G3: ← Para alterar a data da Célula C2, basta digitar na Célula C3
B5: CMIG4 | D5: ← Não Modificar | AD5: =IFERROR(UPPER(_xll.ECONOMATICA($B$5,"name")&" "&_xll.ECONOMATICA($B$5,"class")&" | Listagem Bovespa: "&_xll.ECONOMATICA($B$5,"Segmento listagem Bovespa")&" | Subsetor Bovespa: "&_xll.ECONOMATICA($B$5,"Subsector Bovespa")&" | Segmento Bovespa: "&_xll.ECONOMATICA($B$5,"Segment Bovespa")),"") -> CEMIG PN | LISTAGEM BOVESPA: NÍVEL 1 | SUBSETOR BOVESPA: ENERGIA ELÉTRICA | SEGMENTO BOVESPA: ENERGIA ELÉTRICA
B7: HIGHLIGHTS DE MERCADO | G7: Selecione Unidade: | I7: Thousands | L7: TABELA DE RENTABILIDADE
E8: =E2 -> 2024-09-26 | G8: =IFERROR(DATE(YEAR($E$8)-1,12,31),"") -> 2023-12-31 | I8: =IFERROR(DATE(YEAR($E$8)-2,12,31),"") -> 2022-12-31 | L8: Itens | O8: 1D | Q8: 1M | S8: 6M | U8: 12M | W8: 24M | Y8: 36M | AA8: 48M | AC8: 60M
B9: Preço | E9: =IFERROR(_xll.ECONOMATICA($B$5,"close",,E$8,,,,,,,,{"tc.pers=3"}),"") -> 11.46 | G9: =IFERROR(_xll.ECONOMATICA($B$5,"close",,G$8,,,,,,,,{"tc.pers=3"}),"") -> 7.954619568 | I9: =IFERROR(_xll.ECONOMATICA($B$5,"close",,I$8,,,,,,,,{"tc.pers=3"}),"") -> 6.91090428 | L9: Retorno Nominal | O9: =IFERROR(_xll.ECONOMATICA($B$5,"RETURN",O$8,$E$2,,,,"decimal"),"") -> 0.01058201058 | Q9: =IFERROR(_xll.ECONOMATICA($B$5,"RETURN",Q$8,$E$2,,,,"decimal"),"") -> 0.0110074878 | S9: =IFERROR(_xll.ECONOMATICA($B$5,"RETURN",S$8,$E$2,,,,"decimal"),"") -> 0.3262965441 | U9: =IFERROR(_xll.ECONOMATICA($B$5,"RETURN",U$8,$E$2,,,,"decimal"),"") -> 0.3983805231 | W9: =IFERROR(_xll.ECONOMATICA($B$5,"RETURN",W$8,$E$2,,,,"decimal"),"") -> 0.7181416795 | Y9: =IFERROR(_xll.ECONOMATICA($B$5,"RETURN",Y$8,$E$2,,,,"decimal"),"") -> 1.00131329 | AA9: =IFERROR(_xll.ECONOMATICA($B$5,"RETURN",AA$8,$E$2,,,,"decimal"),"") -> 2.221041302 | AC9: =IFERROR(_xll.ECONOMATICA($B$5,"RETURN",AC$8,$E$2,,,,"decimal"),"") -> 1.612409703
B10: Máximo | E10: =IFERROR(_xll.ECONOMATICA($B$5,"High","in the year",E$8),"") -> 11.86749048 | G10: =IFERROR(_xll.ECONOMATICA($B$5,"High","in the year",G$8),"") -> 8.950360369 | I10: =IFERROR(_xll.ECONOMATICA($B$5,"High","in the year",I$8),"") -> 7.698486342 | L10: Retorno Anualizado | O10: - | Q10: =IFERROR(_xll.ECONOMATICA($B$5,"RETURN",Q8,$E$2,,,,"decimal",,,,{"std.tec.ppr.per=4";"std.tec.ppr.pertd=false"}),"") -> 0.1274346586 | S10: =IFERROR(_xll.ECONOMATICA($B$5,"RETURN",S8,$E$2,,,,"decimal",,,,{"std.tec.ppr.per=4";"std.tec.ppr.pertd=false"}),"") -> 0.736109287 | U10: =IFERROR(_xll.ECONOMATICA($B$5,"RETURN",U8,$E$2,,,,"decimal",,,,{"std.tec.ppr.per=4";"std.tec.ppr.pertd=false"}),"") -> 0.4002498898 | W10: =IFERROR(_xll.ECONOMATICA($B$5,"RETURN",W8,$E$2,,,,"decimal",,,,{"std.tec.ppr.per=4";"std.tec.ppr.pertd=false"}),"") -> 0.3129048602 | Y10: =IFERROR(_xll.ECONOMATICA($B$5,"RETURN",Y8,$E$2,,,,"decimal",,,,{"std.tec.ppr.per=4";"std.tec.ppr.pertd=false"}),"") -> 0.262138624 | AA10: =IFERROR(_xll.ECONOMATICA($B$5,"RETURN",AA8,$E$2,,,,"decimal",,,,{"std.tec.ppr.per=4";"std.tec.ppr.pertd=false"}),"") -> 0.3440030887 | AC10: =IFERROR(_xll.ECONOMATICA($B$5,"RETURN",AC8,$E$2,,,,"decimal",,,,{"std.tec.ppr.per=4";"std.tec.ppr.pertd=false"}),"") -> 0.2145437861
B11: Mínimo | E11: =IFERROR(_xll.ECONOMATICA($B$5,"Low","in the year",E$8),"") -> 7.677455123 | G11: =IFERROR(_xll.ECONOMATICA($B$5,"Low","in the year",G$8),"") -> 6.321554274 | I11: =IFERROR(_xll.ECONOMATICA($B$5,"Low","in the year",I$8),"") -> 5.079956548 | L11: IBOV | O11: =IFERROR(_xll.ECONOMATICA("IBOV","RETURN",O8,$E$2,,,,"decimal"),"") -> 0.01081669123 | Q11: =IFERROR(_xll.ECONOMATICA("IBOV","RETURN",Q8,$E$2,,,,"decimal"),"") -> -0.02833637632 | S11: =IFERROR(_xll.ECONOMATICA("IBOV","RETURN",S8,$E$2,,,,"decimal"),"") -> 0.04845194447 | U11: =IFERROR(_xll.ECONOMATICA("IBOV","RETURN",U8,$E$2,,,,"decimal"),"") -> 0.1647761172 | W11: =IFERROR(_xll.ECONOMATICA("IBOV","RETURN",W8,$E$2,,,,"decimal"),"") -> 0.2189965079 | Y11: =IFERROR(_xll.ECONOMATICA("IBOV","RETURN",Y8,$E$2,,,,"decimal"),"") -> 0.1741405813 | AA11: =IFERROR(_xll.ECONOMATICA("IBOV","RETURN",AA8,$E$2,,,,"decimal"),"") -> 0.37124361 | AC11: =IFERROR(_xll.ECONOMATICA("IBOV","RETURN",AC8,$E$2,,,,"decimal"),"") -> 0.2629181328
B12: Retorno | E12: =IFERROR(_xll.ECONOMATICA($B$5,"return","in the year",E$8,,,,"decimal"),"") -> 0.4406722914 | G12: =IFERROR(_xll.ECONOMATICA($B$5,"return","in the year",G$8,,,,"decimal"),"") -> 0.1510244167 | I12: =IFERROR(_xll.ECONOMATICA($B$5,"return","in the year",I$8,,,,"decimal"),"") -> 0.2493918698 | L12: Diferença IBOV (p.p) | O12: =IFERROR(O9-O11,"") -> -0.000234680649 | Q12: =IFERROR(Q9-Q11,"") -> 0.03934386412 | S12: =IFERROR(S9-S11,"") -> 0.2778445996 | U12: =IFERROR(U9-U11,"") -> 0.233604406 | W12: =IFERROR(W9-W11,"") -> 0.4991451716 | Y12: =IFERROR(Y9-Y11,"") -> 0.8271727084 | AA12: =IFERROR(AA9-AA11,"") -> 1.849797692 | AC12: =IFERROR(AC9-AC11,"") -> 1.34949157
B13: Volume Méd. | E13: =IFERROR(_xll.ECONOMATICA($B$5,"Hist Average","in the year",E8,,,,$I$7,,,,{"std.tec.cals=7"}),"") -> 140456.5185 | G13: =IFERROR(_xll.ECONOMATICA($B$5,"Hist Average","in the year",G8,,,,$I$7,,,,{"std.tec.cals=7"}),"") -> 131349.3621 | I13: =IFERROR(_xll.ECONOMATICA($B$5,"Hist Average","in the year",I8,,,,$I$7,,,,{"std.tec.cals=7"}),"") -> 120656.8631 | L13: Volatilidade | O13: - | Q13: =IFERROR(_xll.ECONOMATICA($B$5,"volatility",Q8,$E$2,,,,"decimal"),"") -> 0.1514769076 | S13: =IFERROR(_xll.ECONOMATICA($B$5,"volatility",S8,$E$2,,,,"decimal"),"") -> 0.2514836001 | U13: =IFERROR(_xll.ECONOMATICA($B$5,"volatility",U8,$E$2,,,,"decimal"),"") -> 0.2713231168 | W13: =IFERROR(_xll.ECONOMATICA($B$5,"volatility",W8,$E$2,,,,"decimal"),"") -> 0.2844978373 | Y13: =IFERROR(_xll.ECONOMATICA($B$5,"volatility",Y8,$E$2,,,,"decimal"),"") -> 0.28498125 | AA13: =IFERROR(_xll.ECONOMATICA($B$5,"volatility",AA8,$E$2,,,,"decimal"),"") -> 0.2877641551 | AC13: =IFERROR(_xll.ECONOMATICA($B$5,"volatility",AC8,$E$2,,,,"decimal"),"") -> 0.3583906203
L14: Sharpe | O14: - | Q14: =IFERROR(_xll.ECONOMATICA($B$5,"sharpe",Q8,$E$2),"") -> 0.2129106292 | S14: =IFERROR(_xll.ECONOMATICA($B$5,"sharpe",S8,$E$2),"") -> 2.452152557 | U14: =IFERROR(_xll.ECONOMATICA($B$5,"sharpe",U8,$E$2),"") -> 1.136601976 | W14: =IFERROR(_xll.ECONOMATICA($B$5,"sharpe",W8,$E$2),"") -> 0.7615190512 | Y14: =IFERROR(_xll.ECONOMATICA($B$5,"sharpe",Y8,$E$2),"") -> 0.6151234645 | AA14: =IFERROR(_xll.ECONOMATICA($B$5,"sharpe",AA8,$E$2),"") -> 0.9655019317 | AC14: =IFERROR(_xll.ECONOMATICA($B$5,"sharpe",AC8,$E$2),"") -> 0.5475846137
B15: Market Cap | E15: =IFERROR(_xll.ECONOMATICA($B$5,"MarketCapitaliz",,E$8,,,,$I$7),"") -> 35517395.16 | G15: =IFERROR(_xll.ECONOMATICA($B$5,"MarketCapitaliz",,G$8,,,,$I$7),"") -> 27947872.2 | I15: =IFERROR(_xll.ECONOMATICA($B$5,"MarketCapitaliz",,I$8,,,,$I$7),"") -> 28200446.98
B16: Market Cap - Free Float | E16: =IFERROR(E15*E58,"") -> 28888186.41 | G16: =IFERROR(G15*G58,"") -> 22829182.94 | I16: =IFERROR(I15*I58,"") -> 23095455.33 | L16: GRÁFICO BASE 100 | AA16: Selecione Um Período ou Digite Uma Data → | AB16: Anos: | AC16: 12M
B17: EV | E17: =IFERROR(_xll.ECONOMATICA($B$5,"EV",,E$8,,,,$I$7),"") -> 44248280.16 | G17: =IFERROR(_xll.ECONOMATICA($B$5,"EV",,G$8,,,,$I$7),"") -> 35473505.2 | I17: =IFERROR(_xll.ECONOMATICA($B$5,"EV",,I$8,,,,$I$7),"") -> 35600647.98
B18: P/VPA | E18: =IFERROR(_xll.ECONOMATICA($B$5,"P/BV",,E$8),"") -> 1.229024135 | G18: =IFERROR(_xll.ECONOMATICA($B$5,"P/BV",,G$8),"") -> 1.024860488 | I18: =IFERROR(_xll.ECONOMATICA($B$5,"P/BV",,I$8),"") -> 1.125657701
B19: Dividend Yield | E19: =IFERROR(_xll.ECONOMATICA($B$5,"Div Yld (start)","12M",E$8,,,,"decimal"),"") -> 0.1661988432 | G19: =IFERROR(_xll.ECONOMATICA($B$5,"Div Yld (start)","12M",G$8,,,,"decimal"),"") -> 0.1158640029 | I19: =IFERROR(_xll.ECONOMATICA($B$5,"Div Yld (start)","12M",I$8,,,,"decimal"),"") -> 0.1349576923
B20: Dividend p/ação R$ | E20: =IFERROR(_xll.ECONOMATICA($B$5,"Divid per Share","12M",E$8),"") -> 1.595508894 | G20: =IFERROR(_xll.ECONOMATICA($B$5,"Divid per Share","12M",G$8),"") -> 0.9928653788 | I20: =IFERROR(_xll.ECONOMATICA($B$5,"Divid per Share","12M",I$8),"") -> 1.046920323
B22: Beta | E22: =IFERROR(_xll.ECONOMATICA($B$5,"beta","in the year",E$8,,,,,,,,{"jtc.per=0"}),"") -> 0.8306668076 | G22: =IFERROR(_xll.ECONOMATICA($B$5,"beta","in the year",G$8,,,,,,,,{"jtc.per=0"}),"") -> 0.7521577716 | I22: =IFERROR(_xll.ECONOMATICA($B$5,"beta","in the year",I$8,,,,,,,,{"jtc.per=0"}),"") -> 1.025429027
B23: Correlação IBOV | E23: =IFERROR(_xll.ECONOMATICA($B$5,"Correlation","in the year",E$8,,,,,,,,{"jtc.per=0"}),"") -> 0.3973994275 | G23: =IFERROR(_xll.ECONOMATICA($B$5,"Correlation","in the year",G$8,,,,,,,,{"jtc.per=0"}),"") -> 0.5100533273 | I23: =IFERROR(_xll.ECONOMATICA($B$5,"Correlation","in the year",I$8,,,,,,,,{"jtc.per=0"}),"") -> 0.6434930969
B25: Drawdown | E25: =IFERROR(_xll.ECONOMATICA($B$5,"MaxDrawdown","in the year",E$8,,,,"decimal"),"") -> -0.08641975308 | G25: =IFERROR(_xll.ECONOMATICA($B$5,"MaxDrawdown","in the year",G$8,,,,"decimal"),"") -> -0.1228668942 | I25: =IFERROR(_xll.ECONOMATICA($B$5,"MaxDrawdown","in the year",I$8,,,,"decimal"),"") -> -0.1482639997
B26: Perda Máxima | E26: =IFERROR(_xll.ECONOMATICA($B$5,"MaxLoss","in the year",E$8,,,,"decimal"),"") -> -0.08641975308 | G26: =IFERROR(_xll.ECONOMATICA($B$5,"MaxLoss","in the year",G$8,,,,"decimal"),"") -> -0.2131147541 | I26: =IFERROR(_xll.ECONOMATICA($B$5,"MaxLoss","in the year",I$8,,,,"decimal"),"") -> -0.2008628901
B28: HIGHLIGHTS FINANCEIROS | G28: Selecione Unidade: | I28: Thousands
E29: =IFERROR(_xll.ECONOMATICA($B$5,"Fin Statm Date"),"") -> 2024-06-30 | G29: =IFERROR(DATE(YEAR($E$29)-1,12,31),"") -> 2023-12-31 | I29: =IFERROR(DATE(YEAR($E$29)-2,12,31),"") -> 2022-12-31
B30: Ativo | E30: =IFERROR(_xll.ECONOMATICA($B$5,"Total Assets",,E$29,,,,$I$28),"") -> 56740773 | G30: =IFERROR(_xll.ECONOMATICA($B$5,"Total Assets",,G$29,,,,$I$28),"") -> 55000080 | I30: =IFERROR(_xll.ECONOMATICA($B$5,"Total Assets",,I$29,,,,$I$28),"") -> 53670837
B31: Pat. Líquido | E31: =IFERROR(_xll.ECONOMATICA($B$5,"Stock Eq Par",,E$29,,,,$I$28),"") -> 26672836 | G31: =IFERROR(_xll.ECONOMATICA($B$5,"Stock Eq Par",,G$29,,,,$I$28),"") -> 24649235 | I31: =IFERROR(_xll.ECONOMATICA($B$5,"Stock Eq Par",,I$29,,,,$I$28),"") -> 21777356
B32: Capital de Giro | E32: =IFERROR(_xll.ECONOMATICA($B$5,"WorkCap",,E$29,,,,$I$28),"") -> -564786 | G32: =IFERROR(_xll.ECONOMATICA($B$5,"WorkCap",,G$29,,,,$I$28),"") -> -1223748 | I32: =IFERROR(_xll.ECONOMATICA($B$5,"WorkCap",,I$29,,,,$I$28),"") -> 2260025
B33: Dív. Bruta | E33: =IFERROR(_xll.ECONOMATICA($B$5,"TtDebtGr",,E$29,,,,$I$28),"") -> 11643438 | G33: =IFERROR(_xll.ECONOMATICA($B$5,"TtDebtGr",,G$29,,,,$I$28),"") -> 9831139 | I33: =IFERROR(_xll.ECONOMATICA($B$5,"TtDebtGr",,I$29,,,,$I$28),"") -> 10579498
B34: Dív. Líquida | E34: =IFERROR(_xll.ECONOMATICA($B$5,"TtNetDebt",,E$29,,,,$I$28),"") -> 8726097 | G34: =IFERROR(_xll.ECONOMATICA($B$5,"TtNetDebt",,G$29,,,,$I$28),"") -> 7519675 | I34: =IFERROR(_xll.ECONOMATICA($B$5,"TtNetDebt",,I$29,,,,$I$28),"") -> 7394291
B35: Dívida CP | E35: =IFERROR(_xll.ECONOMATICA($B$5,"TotDebtsT",,E$29,,,,$I$28),"") -> 4657882 | G35: =IFERROR(_xll.ECONOMATICA($B$5,"TotDebtsT",,G$29,,,,$I$28),"") -> 2629708 | I35: =IFERROR(_xll.ECONOMATICA($B$5,"TotDebtsT",,I$29,,,,$I$28),"") -> 955497
B36: D/(D+E) | E36: =IFERROR(_xll.ECONOMATICA($B$5,"Cap Str(Mkt Cap)",,E$29,,,,"decimal"),"") -> 0.2761541162 | G36: =IFERROR(_xll.ECONOMATICA($B$5,"Cap Str(Mkt Cap)",,G$29,,,,"decimal"),"") -> 0.2602275361 | I36: =IFERROR(_xll.ECONOMATICA($B$5,"Cap Str(Mkt Cap)",,I$29,,,,"decimal"),"") -> 0.272808484
B38: Receita | E38: =IFERROR(_xll.ECONOMATICA($B$5,"Revenues","12M",E$29,,,,$I$28),"") -> 37877173 | G38: =IFERROR(_xll.ECONOMATICA($B$5,"Revenues","12M",G$29,,,,$I$28),"") -> 36849769 | I38: =IFERROR(_xll.ECONOMATICA($B$5,"Revenues","12M",I$29,,,,$I$28),"") -> 34462808 | L38: =IFERROR("COMPARATIVO SETORIAL (Subsetor Bovespa): "&_xll.ECONOMATICA(Factsheet!B5,"Subsector Bovespa"),"") -> COMPARATIVO SETORIAL (Subsetor Bovespa): Energia elétrica
B39: Lucro Bruto | E39: =IFERROR(_xll.ECONOMATICA($B$5,"Gross Profit","12M",E$29,,,,$I$28),"") -> 8808785 | G39: =IFERROR(_xll.ECONOMATICA($B$5,"Gross Profit","12M",G$29,,,,$I$28),"") -> 8383840 | I39: =IFERROR(_xll.ECONOMATICA($B$5,"Gross Profit","12M",I$29,,,,$I$28),"") -> 6810793
B40: Margem Bruta | E40: =IFERROR(_xll.ECONOMATICA($B$5,"GrossMargin","12M",E$29,,,,"decimal"),"") -> 0.2325618388 | G40: =IFERROR(_xll.ECONOMATICA($B$5,"GrossMargin","12M",G$29,,,,"decimal"),"") -> 0.2275140449 | I40: =IFERROR(_xll.ECONOMATICA($B$5,"GrossMargin","12M",I$29,,,,"decimal"),"") -> 0.1976273379
B41: Lucro EBIT | E41: =IFERROR(_xll.ECONOMATICA($B$5,"EBIT","12M",E$29,,,,$I$28),"") -> 7510646 | G41: =IFERROR(_xll.ECONOMATICA($B$5,"EBIT","12M",G$29,,,,$I$28),"") -> 7230126 | I41: =IFERROR(_xll.ECONOMATICA($B$5,"EBIT","12M",I$29,,,,$I$28),"") -> 5687177 | P41: EMPRESA | W41: SETOR
B42: Margem EBIT | E42: =IFERROR(_xll.ECONOMATICA($B$5,"EBITMargin","12M",E$29,,,,"decimal"),"") -> 0.198289508 | G42: =IFERROR(_xll.ECONOMATICA($B$5,"EBITMargin","12M",G$29,,,,"decimal"),"") -> 0.1962054633 | I42: =IFERROR(_xll.ECONOMATICA($B$5,"EBITMargin","12M",I$29,,,,"decimal"),"") -> 0.1650236104 | S42: Atual | U42: Média1 | W42: Média Atual | Y42: Média Geral1
B43: EBITDA | E43: =IFERROR(_xll.ECONOMATICA($B$5,"EBITDA","12M",E$29,,,,$I$28),"") -> 8844474 | G43: =IFERROR(_xll.ECONOMATICA($B$5,"EBITDA","12M",G$29,,,,$I$28),"") -> 8504200 | I43: =IFERROR(_xll.ECONOMATICA($B$5,"EBITDA","12M",I$29,,,,$I$28),"") -> 6869261 | P43: Preço / Lucro* | S43: =IFERROR(INDEX(Múltiplos!L:L,MATCH('Base Factsheet'!$C$5,Múltiplos!$B:$B,0)),"") -> 5.49832868 | U43: =IFERROR(INDEX(Múltiplos!N:N,MATCH('Base Factsheet'!$C$5,Múltiplos!$B:$B,0)),"") -> 5.870621679 | W43: =AVERAGEIFS(Múltiplos!$L:$L,Múltiplos!$L:$L,">0",Múltiplos!$L:$L,"<50") -> 10.87882807 | Y43: =AVERAGE(Múltiplos!N:N) -> 12.27345168
B44: Margem EBITA | E44: =IFERROR(_xll.ECONOMATICA($B$5,"EbitdaMargin","12M",E$29,,,,"decimal"),"") -> 0.2335040685 | G44: =IFERROR(_xll.ECONOMATICA($B$5,"EbitdaMargin","12M",G$29,,,,"decimal"),"") -> 0.2307802798 | I44: =IFERROR(_xll.ECONOMATICA($B$5,"EbitdaMargin","12M",I$29,,,,"decimal"),"") -> 0.1993238914
B45: Lucro Líquido | E45: =IFERROR(_xll.ECONOMATICA($B$5,"Net Income","12M",E$29,,,,$I$28),"") -> 5962433 | G45: =IFERROR(_xll.ECONOMATICA($B$5,"Net Income","12M",G$29,,,,$I$28),"") -> 5764273 | I45: =IFERROR(_xll.ECONOMATICA($B$5,"Net Income","12M",I$29,,,,$I$28),"") -> 4092313 | P45: EV / EBITDA* | S45: =IFERROR(INDEX(Múltiplos!$T:$T,MATCH('Base Factsheet'!$C$5,Múltiplos!$B:$B,0)),"") -> 5.002929531 | U45: =IFERROR(INDEX(Múltiplos!$V:$V,MATCH('Base Factsheet'!$C$5,Múltiplos!$B:$B,0)),"") -> 4.865438664 | W45: =AVERAGEIFS(Múltiplos!$T:$T,Múltiplos!$T:$T,">0",Múltiplos!$T:$T,"<50") -> 7.792694373 | Y45: =AVERAGE(Múltiplos!V:V) -> 8.659365374
B46: Margem Líq. | E46: =IFERROR(_xll.ECONOMATICA($B$5,"Net Margin","12M",E$29,,,,"decimal"),"") -> 0.1574754272 | G46: =IFERROR(_xll.ECONOMATICA($B$5,"Net Margin","12M",G$29,,,,"decimal"),"") -> 0.156495825 | I46: =IFERROR(_xll.ECONOMATICA($B$5,"Net Margin","12M",I$29,,,,"decimal"),"") -> 0.11880538
B47: EPS | E47: =IFERROR(_xll.ECONOMATICA($B$5,"EPS","12M",E$29),"") -> 2.084269724 | G47: =IFERROR(_xll.ECONOMATICA($B$5,"EPS","12M",G$29),"") -> 2.014999217 | I47: =IFERROR(_xll.ECONOMATICA($B$5,"EPS","12M",I$29),"") -> 1.430537517 | P47: Preço / Valor Patrimônio** | S47: =IFERROR(INDEX(Múltiplos!AJ:AJ,MATCH('Base Factsheet'!$C$5,Múltiplos!$B:$B,0)),"") -> 1.229024135 | U47: =IFERROR(INDEX(Múltiplos!AM:AM,MATCH('Base Factsheet'!$C$5,Múltiplos!$B:$B,0)),"") -> 1.152079361 | W47: =AVERAGE(Múltiplos!AJ5:AJ1048576) -> 1.54949033 | Y47: =AVERAGE(Múltiplos!AM:AM) -> 1.847787352
B49: ROE | E49: =IFERROR(_xll.ECONOMATICA($B$5,"ROE (avg)","12M",E$29,,,,"decimal"),"") -> 0.2372024689 | G49: =IFERROR(_xll.ECONOMATICA($B$5,"ROE (avg)","12M",G$29,,,,"decimal"),"") -> 0.2483646152 | I49: =IFERROR(_xll.ECONOMATICA($B$5,"ROE (avg)","12M",I$29,,,,"decimal"),"") -> 0.1985386797 | P49: Preço / Vendas* | S49: =IFERROR(INDEX(Múltiplos!AS:AS,MATCH('Base Factsheet'!$C$5,Múltiplos!$B:$B,0)),"") -> 0.8655190916 | U49: =IFERROR(INDEX(Múltiplos!AU:AU,MATCH('Base Factsheet'!$C$5,Múltiplos!$B:$B,0)),"") -> 0.7561894735 | W49: =AVERAGE(Múltiplos!AS5:AS1048576) -> 1.67022473 | Y49: =AVERAGE(Múltiplos!AU:AU) -> 2.184598974
B50: ROIC | E50: =IFERROR(_xll.ECONOMATICA($B$5,"ROIC (avg IC) %","12M",E$29,,,,"decimal"),"") -> 0.1146193779 | G50: =IFERROR(_xll.ECONOMATICA($B$5,"ROIC (avg IC) %","12M",G$29,,,,"decimal"),"") -> 0.1157360865 | I50: =IFERROR(_xll.ECONOMATICA($B$5,"ROIC (avg IC) %","12M",I$29,,,,"decimal"),"") -> 0.09324398891
B51: ROA | E51: =IFERROR(_xll.ECONOMATICA($B$5,"ROA","12M",E$29,,,,"decimal"),"") -> 0.1051223606 | G51: =IFERROR(_xll.ECONOMATICA($B$5,"ROA","12M",G$29,,,,"decimal"),"") -> 0.1048513929 | I51: =IFERROR(_xll.ECONOMATICA($B$5,"ROA","12M",I$29,,,,"decimal"),"") -> 0.07628662471 | P51: Div. Líq. / EBITDA* | S51: =IFERROR(INDEX(Múltiplos!BA:BA,MATCH('Base Factsheet'!$C$5,Múltiplos!$B:$B,0)),"") -> 0.9866157105 | U51: =IFERROR(INDEX(Múltiplos!BC:BC,MATCH('Base Factsheet'!$C$5,Múltiplos!$B:$B,0)),"") -> 1.159710213 | W51: =AVERAGE(Múltiplos!BA5:BA1048576) -> 3.015088614 | Y51: =AVERAGE(Múltiplos!BC:BC) -> 3.113350746
B53: Nº de Ações | E53: =IFERROR(_xll.ECONOMATICA($B$5,"Num of Shares",,E$29,,,,$I$28,,,,{"std.bac.totex=0"}),"") -> 2861782 | G53: =IFERROR(_xll.ECONOMATICA($B$5,"Num of Shares",,G$29,,,,$I$28,,,,{"std.bac.totex=0"}),"") -> 2201371 | I53: =IFERROR(_xll.ECONOMATICA($B$5,"Num of Shares",,I$29,,,,$I$28,,,,{"std.bac.totex=0"}),"") -> 2201371 | P53: Dividend Yield | S53: =IFERROR(INDEX(Dividendos!$N:$N,MATCH('Base Factsheet'!$C$5,Dividendos!$B:$B,0)),"") -> 0.1661988432 | U53: =IFERROR(INDEX(Dividendos!$P:$P,MATCH('Base Factsheet'!$C$5,Dividendos!$B:$B,0)),"") -> 0.07829079781 | W53: =AVERAGE(Dividendos!N6:N1048576) -> 0.07366770819 | Y53: =AVERAGE(Dividendos!P:P) -> 0.0534364462
B54: Outstanding | E54: =IFERROR(_xll.ECONOMATICA($B$5,"Num of Shares",,E$29,,,,$I$28,,,,),"") -> 2860520 | G54: =IFERROR(_xll.ECONOMATICA($B$5,"Num of Shares",,G$29,,,,$I$28,,,,),"") -> 2200525 | I54: =IFERROR(_xll.ECONOMATICA($B$5,"Num of Shares",,I$29,,,,$I$28,,,,),"") -> 2200525
B55: Tesouraria | E55: =IFERROR(_xll.ECONOMATICA($B$5,"Num of Shares",,E$29,,,,$I$28,,,,{"std.bac.totex=1"}),"") -> 1262 | G55: =IFERROR(_xll.ECONOMATICA($B$5,"Num of Shares",,G$29,,,,$I$28,,,,{"std.bac.totex=1"}),"") -> 846 | I55: =IFERROR(_xll.ECONOMATICA($B$5,"Num of Shares",,I$29,,,,$I$28,,,,{"std.bac.totex=1"}),"") -> 846 | P55: D/(D+E) | S55: =IFERROR(INDEX(Múltiplos!AB:AB,MATCH('Base Factsheet'!$C$5,Múltiplos!$B:$B,0)),"") -> 0.2468878775 | U55: =IFERROR(INDEX(Múltiplos!AD:AD,MATCH('Base Factsheet'!$C$5,Múltiplos!$B:$B,0)),"") -> 0.2978949747 | W55: =AVERAGE(Múltiplos!AB5:AB1048576) -> 0.4598963405 | Y55: =AVERAGE(Múltiplos!AD:AD) -> 0.4025695599
B56: % Tesouraria | E56: =IF(E55="0","-x-",IFERROR((E55/E53),"")) -> 0.0004409839743 | G56: =IF(G55="0","-x-",IFERROR((G55/G53),"")) -> 0.0003843059621 | I56: =IF(I55="0","-x-",IFERROR((I55/I53),"")) -> 0.0003843059621
B57: Free Float | E57: =IFERROR(_xll.ECONOMATICA($B$5,"ShrsHold",,E$29,,,,$I$28,,,,{"std.cac.naop=true";"std.cac.ccacq=7";"std.cac.nm=0";"std.cac.npers=1";"std.cac.tol=4";"std.cac.fam=1"}),"") -> 2327639.499 | G57: =IFERROR(_xll.ECONOMATICA($B$5,"ShrsHold",,G$29,,,,$I$28,,,,{"std.cac.naop=true";"std.cac.ccacq=7";"std.cac.nm=0";"std.cac.npers=1";"std.cac.tol=4";"std.cac.fam=1"}),"") -> 1798187.029 | I57: =IFERROR(_xll.ECONOMATICA($B$5,"ShrsHold",,I$29,,,,$I$28,,,,{"std.cac.naop=true";"std.cac.ccacq=7";"std.cac.nm=0";"std.cac.npers=1";"std.cac.tol=4";"std.cac.fam=1"}),"") -> 1802867.367
B58: % Free Float | E58: =IF(E57="0","-x-",IFERROR((E57/E53),"")) -> 0.8133531831 | G58: =IF(G57="0","-x-",IFERROR((G57/G53),"")) -> 0.8168486952 | I58: =IF(I57="0","-x-",IFERROR((I57/I53),"")) -> 0.8189747966 | P58: 1 Média 5 anos |* Média 5 anos (valores >0 e <50) |** Média 5 anos (valores >0 e <30)

Sheet Múltiplos
E1: Múltiplos
B2: Data: | C2: =Factsheet!E2 -> 2024-09-26 | D2: ← Não Modificar | H2: PREÇO / LUCRO | P2: EV / EBITDA | X2: D/(D+E) | AF2: PREÇO / VALOR PATRIMONIAL | AO2: PREÇO / VENDAS | AW2: DÍVIDA LÍQUIDA / EBITDA
H3: =EOMONTH(I3,-12) -> 2020-12-31 | I3: =EOMONTH(J3,-12) -> 2021-12-31 | J3: =EOMONTH(K3,-12) -> 2022-12-31 | K3: =DATE(YEAR($C$2)-1,12,31) -> 2023-12-31 | L3: =$C$2 -> 2024-09-26 | P3: =EOMONTH(Q3,-12) -> 2020-12-31 | Q3: =EOMONTH(R3,-12) -> 2021-12-31 | R3: =EOMONTH(S3,-12) -> 2022-12-31 | S3: =DATE(YEAR($C$2)-1,12,31) -> 2023-12-31 | T3: =$C$2 -> 2024-09-26 | X3: =EOMONTH(Y3,-12) -> 2020-12-31 | Y3: =EOMONTH(Z3,-12) -> 2021-12-31 | Z3: =EOMONTH(AA3,-12) -> 2022-12-31 | AA3: =DATE(YEAR($C$2)-1,12,31) -> 2023-12-31 | AB3: =TEXT($C$2,"AAAA") -> 2024 | AF3: =EOMONTH(AG3,-12) -> 2020-12-31 | AG3: =EOMONTH(AH3,-12) -> 2021-12-31 | AH3: =EOMONTH(AI3,-12) -> 2022-12-31 | AI3: =DATE(YEAR($C$2)-1,12,31) -> 2023-12-31 | AJ3: =$C$2 -> 2024-09-26 | AO3: =EOMONTH(AP3,-12) -> 2020-12-31 | AP3: =EOMONTH(AQ3,-12) -> 2021-12-31 | AQ3: =EOMONTH(AR3,-12) -> 2022-12-31 | AR3: =DATE(YEAR($C$2)-1,12,31) -> 2023-12-31 | AS3: =$C$2 -> 2024-09-26 | AW3: =EOMONTH(AX3,-12) -> 2020-12-31 | AX3: =EOMONTH(AY3,-12) -> 2021-12-31 | AY3: =EOMONTH(AZ3,-12) -> 2022-12-31 | AZ3: =DATE(YEAR($C$2)-1,12,31) -> 2023-12-31 | BA3: LATEST
B4: =_xll.ECOSECURITIES("stock","active","true","BRA","XBSP",,,"Subsector Bovespa="&SUBSTITUTE(_xll.ECONOMATICA(Factsheet!B5,"Subsector Bovespa"),",","\,")) -> Código | C4: =_xll.ECONOMATICA($B$5:$B$199,"name") -> Nome | D4: =_xll.ECONOMATICA($B$5:$B$199,"Subsector Bovespa",,,,,,,,,"Subsetor Bovespa") -> Subsetor Bovespa | E4: =_xll.ECONOMATICA($B$5:$B$199,"Segment Bovespa",,,,,,,,,"Segmento Bovespa") -> Segmento Bovespa | F4: =_xll.ECONOMATICA(B5:B199,"MarketCapitaliz",,$C$2,,,,"millions",,,"Mkt Cap (Milhões)") -> Mkt Cap (Milhões) | H4: =_xll.ECONOMATICA($B$5:$B$199,"P/E","12m",H3,,,,,,,"P/L") -> P/L | I4: =_xll.ECONOMATICA($B$5:$B$199,"P/E","12m",I3,,,,,,,"P/L") -> P/L | J4: =_xll.ECONOMATICA($B$5:$B$199,"P/E","12m",J3,,,,,,,"P/L") -> P/L | K4: =_xll.ECONOMATICA($B$5:$B$199,"P/E","12m",K3,,,,,,,"P/L") -> P/L | L4: =_xll.ECONOMATICA($B$5:$B$199,"P/E","12m",L3,,,,,,,"P/L") -> P/L | M4: Mediana 5 anos | N4: Média 5 anos (valores >0 e <50) | P4: =_xll.ECONOMATICA($B$5:$B$199,"EV/EBITDA co","12m",P3,,,,,,,"EV/EBITDA") -> EV/EBITDA | Q4: =_xll.ECONOMATICA($B$5:$B$199,"EV/EBITDA co","12m",Q3,,,,,,,"EV/EBITDA") -> EV/EBITDA | R4: =_xll.ECONOMATICA($B$5:$B$199,"EV/EBITDA co","12m",R3,,,,,,,"EV/EBITDA") -> EV/EBITDA | S4: =_xll.ECONOMATICA($B$5:$B$199,"EV/EBITDA co","12m",S3,,,,,,,"EV/EBITDA") -> EV/EBITDA | T4: =_xll.ECONOMATICA($B$5:$B$199,"EV/EBITDA co","12m",T3,,,,,,,"EV/EBITDA") -> EV/EBITDA | U4: Mediana 5 anos | V4: Média 5 anos (valores >0 e <50) | X4: =_xll.ECONOMATICA($B$5:$B$199,"Cap Str(Mkt Cap)",,X3,,,,"decimal",,,"D/D+E") -> D/D+E | Y4: =_xll.ECONOMATICA($B$5:$B$199,"Cap Str(Mkt Cap)",,Y3,,,,"decimal",,,"D/D+E") -> D/D+E | Z4: =_xll.ECONOMATICA($B$5:$B$199,"Cap Str(Mkt Cap)",,Z3,,,,"decimal",,,"D/D+E") -> D/D+E | AA4: =_xll.ECONOMATICA($B$5:$B$199,"Cap Str(Mkt Cap)",,AA3,,,,"decimal",,,"D/D+E") -> D/D+E | AB4: =_xll.ECONOMATICA($B$5:$B$199,"Cap Str(Mkt Cap)",,$C$2,,,,"decimal",,,"D/D+E") -> D/D+E | AC4: Mediana 5 anos | AD4: Média 5 anos | AF4: =_xll.ECONOMATICA($B$5:$B$199,"P/BV",,AF3,,,,,,,"P/VPA") -> P/VPA | AG4: =_xll.ECONOMATICA($B$5:$B$199,"P/BV",,AG3,,,,,,,"P/VPA") -> P/VPA | AH4: =_xll.ECONOMATICA($B$5:$B$199,"P/BV",,AH3,,,,,,,"P/VPA") -> P/VPA | AI4: =_xll.ECONOMATICA($B$5:$B$199,"P/BV",,AI3,,,,,,,"P/VPA") -> P/VPA | AJ4: =_xll.ECONOMATICA($B$5:$B$199,"P/BV",,AJ3,,,,,,,"P/VPA") -> P/VPA | AK4: Máximo 5 anos | AL4: P/VPA atual vs Máximo 5 anos | AM4: Média 5 anos (valores >0 e <30) | AO4: =_xll.ECONOMATICA($B$5:$B$199,"PSR","12m",AO3,,,,,,,"P/Vendas") -> P/Vendas | AP4: =_xll.ECONOMATICA($B$5:$B$199,"PSR","12m",AP3,,,,,,,"P/Vendas") -> P/Vendas | AQ4: =_xll.ECONOMATICA($B$5:$B$199,"PSR","12m",AQ3,,,,,,,"P/Vendas") -> P/Vendas | AR4: =_xll.ECONOMATICA($B$5:$B$199,"PSR","12m",AR3,,,,,,,"P/Vendas") -> P/Vendas | AS4: =_xll.ECONOMATICA($B$5:$B$199,"PSR","12m",AS3,,,,,,,"P/Vendas") -> P/Vendas | AT4: Mediana 5 anos | AU4: Média 5 anos (valores >0 e <50) | AW4: =_xll.ECONOMATICA($B$5:$B$199,"NetDebt/Ebitda","12m",AW3,,,,,,,"DL/EBITDA") -> DL/EBITDA | AX4: =_xll.ECONOMATICA($B$5:$B$199,"NetDebt/Ebitda","12m",AX3,,,,,,,"DL/EBITDA") -> DL/EBITDA | AY4: =_xll.ECONOMATICA($B$5:$B$199,"NetDebt/Ebitda","12m",AY3,,,,,,,"DL/EBITDA") -> DL/EBITDA | AZ4: =_xll.ECONOMATICA($B$5:$B$199,"NetDebt/Ebitda","12m",AZ3,,,,,,,"DL/EBITDA") -> DL/EBITDA | BA4: =_xll.ECONOMATICA($B$5:$B$199,"NetDebt/Ebitda","12m",BA3,,,,,,,"DL/EBITDA") -> DL/EBITDA | BB4: Mediana 5 anos | BC4: Média 5 anos (valores >0 e <50)
B5: AESB3<XBSP> | C5: AES Brasil | D5: Energia elétrica | E5: Energia elétrica | F5: 7043.219374 | H5: 7.77955828 | I5: 23.50819335 | J5: 33.44555453 | K5: 55.32444902 | L5: -52.64262315 | M5: =IFERROR(MEDIAN(H5:L5),"") -> 23.50819335 | N5: =IFERROR(AVERAGEIFS(H5:L5,H5:L5,">0",H5:L5,"<50"),"") -> 21.57776872 | P5: 4.771007277 | Q5: 19.33893737 | R5: 11.70439866 | S5: 10.5695749 | T5: 11.03026959 | U5: =IFERROR(MEDIAN(P5:T5),"") -> 11.03026959 | V5: =IFERROR(AVERAGEIFS(P5:T5,P5:T5,">0",P5:T5,"<50"),"") -> 11.48283756 | X5: 0.4411914115 | Y5: 0.5329600856 | Z5: 0.6520203247 | AA5: 0.6070893837 | AB5: 0.6338184787 | AC5: =IFERROR(MEDIAN(X5:AB5),"") -> 0.6070893837 | AD5: =IFERROR(AVERAGE(X5:AB5),"") -> 0.5734159368 | AF5: 3.580667126 | AG5: 1.69019303 | AH5: 1.32415899 | AI5: 1.641026472 | AJ5: 1.646485196 | AK5: =IF(MAX(AF5:AJ5)=0,"",MAX(AF5:AJ5)) -> 3.580667126 | AL5: =IFERROR(AJ5/AK5,"") -> 0.4598263782 | AM5: =IFERROR(AVERAGEIFS(AF5:AJ5,AF5:AJ5,">0",AF5:AJ5,"<30"),"") -> 1.976506163 | AO5: 3.280258072 | AP5: 4.500609275 | AQ5: 1.759823973 | AR5: 2.161069472 | AS5: 1.958971669 | AT5: =IFERROR(MEDIAN(AO5:AS5),"") -> 2.161069472 | AU5: =IFERROR(AVERAGEIFS(AO5:AS5,AO5:AS5,">0",AO5:AS5,"<50"),"") -> 2.732146492 | AW5: 1.559008631 | AX5: 8.093162278 | AY5: 5.899578403 | AZ5: 5.569969812 | BA5: 6.101746012 | BB5: =IFERROR(MEDIAN(AW5:BA5),"") -> 5.899578403 | BC5: =IFERROR(AVERAGEIFS(AW5:BA5,AW5:BA5,">0",AW5:BA5,"<50"),"") -> 5.444693027
B6: AESO3<XBSP> | C6: Aesoperacoes | D6: Energia elétrica | E6: Energia elétrica | M6: =IFERROR(MEDIAN(H6:L6),"") ->  | N6: =IFERROR(AVERAGEIFS(H6:L6,H6:L6,">0",H6:L6,"<50"),"") ->  | U6: =IFERROR(MEDIAN(P6:T6),"") ->  | V6: =IFERROR(AVERAGEIFS(P6:T6,P6:T6,">0",P6:T6,"<50"),"") ->  | AC6: =IFERROR(MEDIAN(X6:AB6),"") ->  | AD6: =IFERROR(AVERAGE(X6:AB6),"") ->  | AK6: =IF(MAX(AF6:AJ6)=0,"",MAX(AF6:AJ6)) ->  | AL6: =IFERROR(AJ6/AK6,"") ->  | AM6: =IFERROR(AVERAGEIFS(AF6:AJ6,AF6:AJ6,">0",AF6:AJ6,"<30"),"") ->  | AT6: =IFERROR(MEDIAN(AO6:AS6),"") ->  | AU6: =IFERROR(AVERAGEIFS(AO6:AS6,AO6:AS6,">0",AO6:AS6,"<50"),"") ->  | AX6: 4.302981814 | AY6: 3.834786562 | AZ6: 3.033997043 | BA6: 3.472779137 | BB6: =IFERROR(MEDIAN(AW6:BA6),"") -> 3.65378285 | BC6: =IFERROR(AVERAGEIFS(AW6:BA6,AW6:BA6,">0",AW6:BA6,"<50"),"") -> 3.661136139
B7: AFLT3<XBSP> | C7: Afluente T | D7: Energia elétrica | E7: Energia elétrica | F7: 448.53435 | H7: 33.24699877 | I7: 5.606403795 | J7: 15.59877167 | K7: 18.87364691 | L7: 15.947888 | M7: 15.947888 | N7: 17.85474183 | P7: 30.64698477 | Q7: 5.251163522 | R7: 14.6457541 | S7: 17.77969559 | T7: 12.99033024 | U7: 14.6457541 | V7: 16.26278564 | X7: 0.00118665849 | Y7: 0.0009587557386 | Z7: 0.000574227491 | AA7: 0.0002472168958 | AB7: 7.579669854e-05 | AC7: 0.000574227491 | AD7: 0.0006085310628 | AF7: 3.318155437 | AG7: 2.26070003 | AH7: 2.242908235 | AI7: 2.13221437 | AJ7: 1.858077565 | AK7: 3.318155437 | AL7: 0.5599730334 | AM7: 2.362411127 | AO7: 17.31194267 | AP7: 4.650669886 | AQ7: 8.115656138 | AR7: 8.051170755 | AS7: 8.401564988 | AT7: 8.115656138 | AU7: 9.306200887 | AW7: -1.578592892 | AX7: -0.1653518155 | AY7: -0.5453813383 | AZ7: -0.09241120016 | BA7: -0.7502680513 | BB7: -0.5453813383
B8: ALUP11<XBSP> | C8: Alupar | D8: Energia elétrica | E8: Energia elétrica | F8: 9757.452933 | H8: 8.42636225 | I8: 6.331529074 | J8: 9.009987754 | K8: 13.83583697 | L8: 13.22383856 | M8: 9.009987754 | N8: 10.16551092 | P8: 5.207323904 | Q8: 4.774233023 | R8: 6.820929006 | S8: 8.706091423 | T8: 8.239601708 | U8: 6.820929006 | V8: 6.749635813 | X8: 0.5341188 | Y8: 0.5871889656 | Z8: 0.5886482354 | AA8: 0.5517267927 | AB8: 0.5612151755 | AC8: 0.5612151755 | AD8: 0.5645795938 | AF8: 1.380558583 | AG8: 1.077993952 | AH8: 1.189320564 | AI8: 1.30553857 | AJ8: 1.240767754 | AK8: 1.380558583 | AL8: 0.8987432835 | AM8: 1.238835885 | AO8: 1.292738057 | AP8: 1.349238292 | AQ8: 2.158580521 | AR8: 2.899981162 | AS8: 2.78809278 | AT8: 2.158580521 | AU8: 2.097726162 | AW8: 2.006598067 | AX8: 2.083025838 | AY8: 2.982058585 | AZ8: 3.57896956 | BA8: 3.277555404 | BB8: 2.982058585 | BC8: 2.785641491
B9: CBEE3<XBSP> | C9: Ampla Energ | D9: Energia elétrica | E9: Energia elétrica | F9: 3945.16355 | H9: 67.77893467 | I9: 45.95311863 | J9: -33.13192902 | K9: -18.64078103 | L9: -18.33482686 | M9: -18.33482686 | N9: 45.95311863 | P9: 9.27306376 | Q9: 9.251643597 | R9: 6.024356224 | S9: 6.889714631 | T9: 7.27480814 | U9: 7.27480814 | V9: 7.742717271 | X9: 0.5817373042 | Y9: 0.6092636135 | Z9: 0.6148127802 | AA9: 0.6128770857 | AB9: 0.6218970397 | AC9: 0.6128770857 | AD9: 0.6081175647 | AF9: 0.9233638567 | AG9: 1.032216588 | AH9: 0.619006875 | AI9: 0.7039510343 | AJ9: 0.7369871217 | AK9: 1.032216588 | AL9: 0.7139849622 | AM9: 0.8031050952 | AO9: 0.5327519683 | AP9: 0.452309111 | AQ9: 0.3958450752 | AR9: 0.4582892023 | AS9: 0.4884027001 | AT9: 0.4582892023 | AU9: 0.4655196114 | AW9: 5.021079019 | AX9: 5.499874699 | AY9: 3.648172306 | AZ9: 4.170394801 | BA9: 4.424159635 | BB9: 4.424159635 | BC9: 4.552736092
B10: AURE3<XBSP> | C10: Auren | D10: Energia elétrica | E10: Energia elétrica | F10: 10400 | J10: 4.855933656 | K10: -41.89631999 | L10: -26.9558546 | M10: -26.9558546 | N10: 4.855933656 | R10: 8.657936743 | S10: 9.416555837 | T10: 7.067784515 | U10: 8.657936743 | V10: 8.380759032 | Z10: 0.2851083507 | AA10: 0.3253436654 | AB10: 0.4441387207 | AC10: 0.3253436654 | AD10: 0.3515302456 | AH10: 0.9657067249 | AI10: 1.076081379 | AJ10: 0.8444619616 | AK10: 1.076081379 | AL10: 0.7847565976 | AM10: 0.9620833551 | AQ10: 2.354496227 | AR10: 2.153063222 | AS10: 1.683428652 | AT10: 2.153063222 | AU10: 2.0636627 | AX10: 1.58570501 | AY10: 1.317245442 | AZ10: 1.816005583 | BA10: 1.709365537 | BB10: 1.647535273 | BC10: 1.607080393
B11: CEBR6<XBSP> | C11: Ceb | D11: Energia elétrica | E11: Energia elétrica | F11: 1332.042365 | H11: 4.865232267 | I11: 0.8888775298 | J11: 3.711626451 | K11: 6.991761141 | L11: 7.736862676 | M11: 4.865232267 | N11: 4.838872013 | X11: 0.04614666766 | Y11: 0 | Z11: 0 | AA11: 0 | AB11: 0 | AC11: 0 | AD11: 0.009229333531 | AF11: 3.100895766 | AG11: 1.340772555 | AH11: 0.7458306662 | AI11: 1.272445888 | AJ11: 1.252894573 | AK11: 3.100895766 | AL11: 0.4040427888 | AM11: 1.54256789 | AO11: 8.248328296 | AP11: 3.239702727 | AQ11: 2.261668877 | AR11: 3.639148106 | AS11: 3.648682818 | AT11: 3.639148106 | AU11: 4.207506165
B12: CEED3<XBSP> | C12: Ceee-D | D12: Energia elétrica | E12: Energia elétrica | F12: 954.8864707 | H12: -0.3459756978 | I12: -4.656607865 | J12: -9.744403393 | K12: -3.670018094 | L12: -1.850239631 | M12: -3.670018094 | P12: -2.780708903 | Q12: 28.15546284 | R12: 11.85781608 | S12: 10.49292455 | T12: 13.74303491 | U12: 11.85781608 | V12: 16.06230959 | X12: 0.6354281877 | Y12: 0.4938860068 | Z12: 0.5646106348 | AA12: 0.7278346521 | AB12: 0.8353609519 | AC12: 0.6354281877 | AD12: 0.6514240867 | AF12: -0.09777009083 | AG12: -1.232668874 | AH12: -0.9449950722 | AI12: -0.4940117796 | AJ12: -0.2697714328 | AK12: -0.09777009083 | AL12: 2.75924294 | AO12: 0.1597644203 | AP12: 0.3755665885 | AQ12: 0.5805040251 | AR12: 0.3457723248 | AS12: 0.1980974719 | AT12: 0.3457723248 | AU12: 0.3319409661 | AX12: 11.26363983 | AY12: 5.664193863 | AZ12: 6.846297922 | BA12: 10.92131641 | BB12: 8.883807164 | BC12: 8.673862006
B13: CGEE3<XBSP> | C13: Ceee-G | D13: Energia elétrica | E13: Energia elétrica | AX13: -2.871802261 | AZ13: 3.999811648 | BA13: 9.644223599 | BB13: 3.999811648 | BC13: 6.822017623
B14: CLSC4<XBSP> | C14: Celesc | D14: Energia elétrica | E14: Energia elétrica | F14: 3101.601836 | H14: 4.040638953 | I14: 4.656556594 | J14: 3.895417471 | K14: 4.525064628 | L14: 5.111922696 | M14: 4.525064628 | N14: 4.445920068 | P14: 3.197186546 | Q14: 3.533374647 | R14: 3.283870397 | S14: 4.147293727 | T14: 4.309918396 | U14: 3.533374647 | V14: 3.694328743 | X14: 0.4765666085 | Y14: 0.446383121 | Z14: 0.5460547644 | AA14: 0.5629924959 | AB14: 0.5031071137 | AC14: 0.5031071137 | AD14: 0.5070208207 | AF14: 1.056018574 | AG14: 1.000409439 | AH14: 0.7303455145 | AI14: 0.859525068 | AJ14: 0.9655286234 | AK14: 1.056018574 | AL14: 0.9143102658 | AM14: 0.9223654438 | AO14: 0.2365831121 | AP14: 0.2312243291 | AQ14: 0.2088414028 | AR14: 0.2423060496 | AS14: 0.3109509724 | AT14: 0.2365831121 | AU14: 0.2459811732 | AW14: 0.8620012379 | AX14: 1.129235194 | AY14: 1.397575941 | AZ14: 1.987423928 | BA14: 1.938128248 | BB14: 1.397575941 | BC14: 1.46287291
B15: GPAR3<XBSP> | C15: Celgpar | D15: Energia elétrica | E15: Energia elétrica | H15: 10.32787955 | J15: 20.64998616 | M15: 15.48893285 | N15: 15.48893285 | X15: 0.04731802299 | Z15: 0.02698302195 | AC15: 0.03715052247 | AD15: 0.03715052247 | AF15: 1.510465674 | AH15: 2.209900047 | AK15: 2.209900047 | AL15: 0 | AM15: 1.860182861 | AO15: 6.173788755 | AQ15: 12.94714457 | AT15: 9.56046666 | AU15: 9.56046666
B16: CMIG4<XBSP> | C16: Cemig | D16: Energia elétrica | E16: Energia elétrica | F16: 35517.39516 | H16: 7.566412344 | I16: 5.915632493 | J16: 5.990217428 | K16: 4.382517448 | L16: 5.49832868 | M16: 5.915632493 | N16: 5.870621679 | P16: 5.722164544 | Q16: 4.248204483 | R16: 5.182602318 | S16: 4.171292444 | T16: 5.002929531 | U16: 5.002929531 | V16: 4.865438664 | X16: 0.3992099645 | Y16: 0.3103410114 | Z16: 0.272808484 | AA16: 0.2602275361 | AB16: 0.2468878775 | AC16: 0.272808484 | AD16: 0.2978949747 | AF16: 1.240282297 | AG16: 1.140572185 | AH16: 1.125657701 | AI16: 1.024860488 | AJ16: 1.229024135 | AK16: 1.240282297 | AL16: 0.9909229041 | AM16: 1.152079361 | AO16: 0.8590201122 | AP16: 0.6595541393 | AQ16: 0.7113130379 | AR16: 0.6855409867 | AS16: 0.8655190916 | AT16: 0.7113130379 | AU16: 0.7561894735 | AW16: 1.752287876 | AX16: 1.098984943 | AY16: 1.076431802 | AZ16: 0.884230733 | BA16: 0.9866157105 | BB16: 1.076431802 | BC16: 1.159710213
B17: CEEB3<XBSP> | C17: Coelba | D17: Energia elétrica | E17: Energia elétrica | F17: 10012.20151 | H17: 9.557114743 | I17: 5.26076453 | J17: 6.631848373 | K17: 5.800602066 | L17: 5.854592204 | M17: 5.854592204 | N17: 6.620984383 | P17: 7.968192106 | Q17: 5.582536082 | R17: 5.606853651 | S17: 5.144890356 | T17: 4.993666633 | U17: 5.582536082 | V17: 5.859227766 | X17: 0.4012393265 | Y17: 0.5650821251 | Z17: 0.564017887 | AA17: 0.573138209 | AB17: 0.5992907724 | AC17: 0.5650821251 | AD17: 0.540553664 | AF17: 1.907049795 | AG17: 1.421667098 | AH17: 1.75809616 | AI17: 1.657186143 | AJ17: 1.500864976 | AK17: 1.907049795 | AL17: 0.7870088024 | AM17: 1.648972834 | AO17: 1.032354707 | AP17: 0.615507606 | AQ17: 0.7434616111 | AR17: 0.70369465 | AS17: 0.6584029328 | AT17: 0.70369465 | AU17: 0.7506843015 | AW17: 3.077148847 | AX17: 3.068155785 | AY17: 3.048817313 | AZ17: 2.859264041 | BA17: 2.865674814 | BB17: 3.048817313 | BC17: 2.98381216
B18: COCE5<XBSP> | C18: Coelce | D18: Energia elétrica | E18: Energia elétrica | F18: 2353.107148 | H18: 17.61558309 | I18: 9.256517916 | J18: 5.476622029 | K18: 10.71054526 | L18: 6.193243366 | M18: 9.256517916 | N18: 9.850502333 | P18: 10.62778488 | Q18: 6.347258236 | R18: 4.836306203 | S18: 5.05434427 | T18: 3.954481835 | U18: 5.05434427 | V18: 6.164035085 | X18: 0.3206012081 | Y18: 0.4492500864 | Z18: 0.5704612421 | AA18: 0.6340942975 | AB18: 0.6964653557 | AC18: 0.5704612421 | AD18: 0.534174438 | AF18: 1.44598314 | AG18: 1.297065456 | AH18: 0.8865925345 | AI18: 0.8062041195 | AJ18: 0.4494322961 | AK18: 1.44598314 | AL18: 0.3108143406 | AM18: 0.9770555092 | AO18: 0.7961572204 | AP18: 0.5576928806 | AQ18: 0.4094345594 | AR18: 0.391836342 | AS18: 0.2775221159 | AT18: 0.4094345594 | AU18: 0.4865286236 | AW18: 3.158808185 | AX18: 2.726973656 | AY18: 2.688049057 | AZ18: 3.165120605 | BA18: 2.709184089 | BB18: 2.726973656 | BC18: 2.889627118
B19: COMR3<XBSP> | C19: Comerc | D19: Energia elétrica | E19: Energia elétrica | AW19: -45.12297297 | AY19: 3.982306371 | AZ19: 8.806463376 | BA19: 17.80416169 | BB19: 6.394384873 | BC19: 10.19764381
B20: CPLE6<XBSP> | C20: Copel | D20: Energia elétrica | E20: Energia elétrica | F20: 29349.27295 | H20: 5.252733799 | I20: 3.499182526 | J20: 19.46583085 | K20: 12.9969807 | L20: 13.1353094 | M20: 12.9969807 | N20: 10.87000745 | P20: 5.092791706 | Q20: 3.947339734 | R20: 7.276558851 | S20: 7.768331365 | T20: 7.75819956 | U20: 7.276558851 | V20: 6.368644243 | X20: 0.334462597 | Y20: 0.408902792 | Z20: 0.3768104265 | AA20: 0.3341908724 | AB20: 0.3613356198 | AC20: 0.3613356198 | AD20: 0.3631404615 | AF20: 1.027487337 | AG20: 0.7936043345 | AH20: 1.039811773 | AI20: 1.293716813 | AJ20: 1.240916635 | AK20: 1.293716813 | AL20: 0.9591872214 | AM20: 1.079107378 | AO20: 1.100598924 | AP20: 0.7225546 | AQ20: 0.987158682 | AR20: 1.366780126 | AS20: 1.383420097 | AT20: 1.100598924 | AU20: 1.112102486 | AW20: 1.277095701 | AX20: 1.276987772 | AY20: 2.317999923 | AZ20: 1.836395461 | BA20: 1.848814889 | BB20: 1.836395461 | BC20: 1.711458749
B21: CSRN3<XBSP> | C21: Cosern | D21: Energia elétrica | E21: Energia elétrica | F21: 2350.3872 | H21: 8.585534444 | I21: 5.010686416 | J21: 6.190677453 | K21: 7.988525724 | L21: 4.11857009 | M21: 6.190677453 | N21: 6.378798826 | P21: 7.727108327 | Q21: 5.453884338 | R21: 5.434483381 | S21: 6.479034011 | T21: 4.292129359 | U21: 5.453884338 | V21: 5.877327883 | X21: 0.3666023589 | Y21: 0.4440836887 | Z21: 0.4056193925 | AA21: 0.36730089 | AB21: 0.5620168444 | AC21: 0.4056193925 | AD21: 0.4291246349 | AF21: 2.209370038 | AG21: 1.765165803 | AH21: 2.559988327 | AI21: 3.033159508 | AJ21: 1.381986941 | AK21: 3.033159508 | AL21: 0.4556262 | AM21: 2.189934123 | AO21: 1.050913665 | AP21: 0.7385773949 | AQ21: 1.014893792 | AR21: 1.296093035 | AS21: 0.6300458655 | AT21: 1.014893792 | AU21: 0.9461047505 | AW21: 2.601045296 | AX21: 2.311840563 | AY21: 2.05982906 | AZ21: 2.159889094 | BA21: 2.168925023 | BB21: 2.168925023 | BC21: 2.260305807
B22: CPFE3<XBSP> | C22: CPFL Energia | D22: Energia elétrica | E22: Energia elétrica | F22: 38508.34339 | H22: 10.29490752 | I22: 6.511092582 | J22: 7.501559422 | K22: 8.028316921 | L22: 7.039248632 | M22: 7.501559422 | N22: 7.875025015 | P22: 7.505971477 | Q22: 5.699607595 | R22: 4.918971925 | S22: 5.175449154 | T22: 4.916170386 | U22: 5.175449154 | V22: 5.643234107 | X22: 0.3347215781 | Y22: 0.4203170922 | Z22: 0.3988609731 | AA22: 0.3733504539 | AB22: 0.4219744138 | AC22: 0.3988609731 | AD22: 0.3898449022 | AF22: 2.6913377 | AG22: 2.041104867 | AH22: 2.353188844 | AI22: 2.350348176 | AJ22: 2.008109303 | AK22: 2.6913377 | AL22: 0.7461379904 | AM22: 2.288817778 | AO22: 1.213843164 | AP22: 0.7884435077 | AQ22: 0.9720642636 | AR22: 1.116501179 | AS22: 0.9545296259 | AT22: 0.9720642636 | AU22: 1.009076348 | AW22: 1.929319113 | AX22: 2.143170905 | AY22: 1.694618215 | AZ22: 1.629440042 | BA22: 1.866701217 | BB22: 1.866701217 | BC22: 1.852649898
B23: EKTR4<XBSP> | C23: Elektro | D23: Energia elétrica | E23: Energia elétrica | F23: 8825.72245 | H23: 8.83375393 | I23: 6.776850669 | J23: 6.879820071 | K23: 7.582741504 | L23: 8.82572245 | M23: 7.582741504 | N23: 7.779777725 | P23: 6.694492534 | Q23: 6.143788687 | R23: 5.225414974 | S23: 5.182755952 | T23: 5.89306592 | U23: 5.89306592 | V23: 5.827903614 | X23: 0.4508029128 | Y23: 0.4527601173 | Z23: 0.435217891 | AA23: 0.4278106616 | AB23: 0.4351798787 | AC23: 0.435217891 | AD23: 0.4403542923 | AF23: 1.753707381 | AG23: 1.722501933 | AH23: 2.367714691 | AI23: 2.455099033 | AJ23: 3.87603094 | AK23: 3.87603094 | AL23: 1 | AM23: 2.435010795 | AO23: 0.7653420644 | AP23: 0.6549760435 | AQ23: 0.8087151395 | AR23: 0.8460119499 | AS23: 0.9864448921 | AT23: 0.8087151395 | AU23: 0.8122980179 | AW23: 2.592592593 | AX23: 2.576809888 | AY23: 2.126485972 | AZ23: 2.052295918 | BA23: 2.267050123 | BB23: 2.267050123 | BC23: 2.323046899
B24: ELET3<XBSP> | C24: Eletrobras | D24: Energia elétrica | E24: Energia elétrica | F24: 90572.78899 | H24: 8.922587648 | I24: 9.28385998 | J24: 22.86009666 | K24: 21.24443148 | L24: 20.13295379 | M24: 20.13295379 | N24: 16.48878591 | P24: 8.192776943 | Q24: 5.04206953 | R24: 11.8959158 | S24: 6.690014288 | T24: 7.600397142 | U24: 7.600397142 | V24: 7.884234741 | X24: 0.4547167746 | Y24: 0.4619897694 | Z24: 0.3810338112 | AA24: 0.3867275557 | AB24: 0.443191323 | AC24: 0.443191323 | AD24: 0.4255318468 | AF24: 0.7829888687 | AG24: 0.6886121337 | AH24: 0.877135897 | AI24: 0.8500275965 | AJ24: 0.7837008609 | AK24: 0.877135897 | AL24: 0.8934771266 | AM24: 0.7964930714 | AO24: 1.944859063 | AP24: 1.393493371 | AQ24: 2.438941755 | AR24: 2.601189519 | AS24: 2.498152824 | AT24: 2.438941755 | AU24: 2.175327306 | AW24: 2.805742357 | AX24: 1.690799052 | AY24: 3.058125662 | AZ24: 2.009413598 | BA24: 2.541385822 | BB24: 2.541385822 | BC24: 2.421093298
B25: LIPR3<XBSP> | C25: Eletropar | D25: Energia elétrica | E25: Energia elétrica | F25: 558.8322275 | H25: 20.53371631 | I25: 39.39120385 | J25: 30.33245629 | K25: 44.27977041 | L25: 27.44216399 | M25: 30.33245629 | N25: 32.39586217 | P25: 19.6614423 | Q25: 38.21193667 | R25: 32.03613802 | S25: 41.74354521 | T25: 27.36180716 | U25: 32.03613802 | V25: 31.80297387 | X25: 0 | Y25: 0 | Z25: 0 | AA25: 0 | AB25: 0 | AC25: 0 | AD25: 0 | AF25: 4.562779234 | AG25: 4.082928513 | AH25: 3.743033497 | AI25: 3.899586173 | AJ25: 2.469889363 | AK25: 4.562779234 | AL25: 0.5413124844 | AM25: 3.751643356 | AW25: -2.176469206 | AX25: -3.708244835 | AY25: -2.681716622 | AZ25: -3.260811816 | BA25: -3.743181565 | BB25: -3.260811816
B26: EMAE4<XBSP> | C26: Emae | D26: Energia elétrica | E26: Energia elétrica | F26: 1865.443226 | H26: 14.03719812 | I26: 18.72758795 | J26: 36.93341954 | K26: 14.48613105 | L26: 9.780727989 | M26: 14.48613105 | N26: 18.79301293 | P26: 15.65135347 | Q26: 40.34666403 | R26: -85.0457147 | S26: 20.7783755 | T26: 13.1885927 | U26: 15.65135347 | V26: 22.49124642 | X26: 0.02326387476 | Y26: 0 | Z26: 0 | AA26: 0 | AB26: 0 | AC26: 0 | AD26: 0.004652774952 | AF26: 3.877693612 | AG26: 3.805711178 | AH26: 2.234537228 | AI26: 2.00265965 | AJ26: 1.265073434 | AK26: 3.877693612 | AL26: 0.3262437833 | AM26: 2.63713502 | AO26: 6.231223668 | AP26: 5.307136406 | AQ26: 4.715782367 | AR26: 3.613093087 | AS26: 2.291646475 | AT26: 4.715782367 | AU26: 4.431776401 | AW26: -3.033625505 | AX26: -5.027263765 | AZ26: -5.051033829 | BA26: -3.890154359 | BB26: -4.458709062
B27: ENBR3<XBSP> | C27: Energias BR | D27: Energia elétrica | E27: Energia elétrica | H27: 7.873425084 | I27: 5.67589845 | J27: 11.61116465 | M27: 7.873425084 | N27: 8.386829395 | P27: 5.501386693 | Q27: 4.631414539 | R27: 5.420041782 | U27: 5.420041782 | V27: 5.184281004 | X27: 0.4343793411 | Y27: 0.4673812179 | Z27: 0.5440523948 | AC27: 0.4673812179 | AD27: 0.4819376513 | AF27: 1.162390921 | AG27: 1.082978769 | AH27: 1.097035339 | AK27: 1.162390921 | AL27: 0 | AM27: 1.11413501 | AO27: 0.7924063906 | AP27: 0.6495136766 | AQ27: 0.6860435842 | AT27: 0.6860435842 | AU27: 0.7093212171 | AW27: 1.775083092 | AX27: 1.730567194 | AY27: 2.341758197 | AZ27: 1.957803604 | BA27: 1.974065068 | BB27: 1.957803604 | BC27: 1.955855431
B28: ENGI11<XBSP> | C28: Energisa | D28: Energia elétrica | E28: Energia elétrica | F28: 23296.16064 | H28: 12.93587733 | I28: 5.90163566 | J28: 7.846316108 | K28: 11.35827848 | L28: 8.078467287 | M28: 8.078467287 | N28: 9.224114971 | P28: 9.386437663 | Q28: 6.114602008 | R28: 6.341834707 | S28: 7.117623291 | T28: 6.095443634 | U28: 6.341834707 | V28: 7.011188261 | X28: 0.4800674257 | Y28: 0.5678501007 | Z28: 0.5798311726 | AA28: 0.5597872988 | AB28: 0.5970040882 | AC28: 0.5678501007 | AD28: 0.5569080172 | AF28: 2.858000297 | AG28: 1.899311951 | AH28: 1.633069348 | AI28: 1.807531951 | AJ28: 1.321064439 | AK28: 2.858000297 | AL28: 0.4622338355 | AM28: 1.903795597 | AO28: 0.9346727944 | AP28: 0.5776694114 | AQ28: 0.6322082568 | AR28: 0.754071708 | AS28: 0.6304295038 | AT28: 0.6322082568 | AU28: 0.7058103349 | AW28: 3.605882811 | AX28: 2.934690105 | AY28: 3.210444151 | AZ28: 3.277433252 | BA28: 2.835497992 | BB28: 3.210444151 | BC28: 3.172789662
B29: ENMT4<XBSP> | C29: Energisa Mt | D29: Energia elétrica | E29: Energia elétrica | F29: 17892.32517 | H29: 10.56555964 | I29: 15.56206142 | J29: 15.07783546 | K29: 10.79592228 | L29: 12.25668866 | M29: 12.25668866 | N29: 12.85161349 | P29: 8.194620741 | Q29: 11.39742791 | R29: 10.43933127 | S29: 7.90911546 | T29: 8.968239826 | U29: 8.968239826 | V29: 9.381747043 | X29: 0.3899119272 | Y29: 0.2028456736 | Z29: 0.2162975287 | AA29: 0.2664190658 | AB29: 0.2541148193 | AC29: 0.2541148193 | AD29: 0.2659178029 | AF29: 2.598331401 | AG29: 6.129943613 | AH29: 5.792875435 | AI29: 3.958417578 | AJ29: 4.360259572 | AK29: 6.129943613 | AL29: 0.7113050049 | AM29: 4.56796552 | AO29: 1.405657805 | AP29: 2.408483128 | AQ29: 2.517330552 | AR29: 1.967951094 | AS29: 2.209081012 | AT29: 2.209081012 | AU29: 2.101700718 | AW29: 2.237232326 | AX29: 2.167311826 | AY29: 1.987974341 | AZ29: 1.822907581 | BA29: 1.866087242 | BB29: 1.987974341 | BC29: 2.016302663
B30: ENEV3<XBSP> | C30: Eneva | D30: Energia elétrica | E30: Energia elétrica | F30: 22120.40534 | H30: 19.45249611 | I30: 15.24010881 | J30: 45.58024216 | K30: 98.92940145 | L30: 35.18730049 | M30: 35.18730049 | N30: 28.86503689 | P30: 15.48316718 | Q30: 10.85955711 | R30: 16.66342003 | S30: 9.624203222 | T30: 10.07854995 | U30: 10.85955711 | V30: 12.5417795 | X30: 0.2642048209 | Y30: 0.3028768932 | Z30: 0.4945283662 | AA30: 0.4776989737 | AB30: 0.4688880292 | AC30: 0.4688880292 | AD30: 0.4016394166 | AF30: 2.472020754 | AG30: 1.981330857 | AH30: 1.379599695 | AI30: 1.7434188 | AJ30: 1.477584238 | AK30: 2.472020754 | AL30: 0.5977232334 | AM30: 1.810790869 | AO30: 6.04335011 | AP30: 3.489399071 | AQ30: 2.794742932 | AR30: 2.134146352 | AS30: 2.44143102 | AT30: 2.794742932 | AU30: 3.380613897 | AW30: 3.218673933 | AX30: 2.758112962 | AY30: 7.745398419 | AZ30: 3.993420744 | BA30: 4.362238382 | BB30: 3.993420744 | BC30: 4.415568888
B31: EGIE3<XBSP> | C31: Engie Brasil | D31: Energia elétrica | E31: Energia elétrica | F31: 35133.84848 | H31: 12.81755398 | I31: 20.04174934 | J31: 11.60586779 | K31: 10.78449083 | L31: 8.038799946 | M31: 11.60586779 | N31: 12.65769238 | P31: 7.414474693 | Q31: 7.797553202 | R31: 6.779022334 | S31: 7.246828112 | T31: 6.15865616 | U31: 7.246828112 | V31: 7.0793069 | X31: 0.318611839 | Y31: 0.391159048 | Z31: 0.3596244511 | AA31: 0.3521713073 | AB31: 0.3770224926 | AC31: 0.3596244511 | AD31: 0.3597178276 | AF31: 4.632305777 | AG31: 3.952547972 | AH31: 3.663517121 | AI31: 4.173187421 | AJ31: 3.176242293 | AK31: 4.632305777 | AL31: 0.6856719841 | AM31: 3.919560117 | AO31: 2.92449628 | AP31: 2.499051247 | AQ31: 2.59581491 | AR31: 3.441267935 | AS31: 3.303486906 | AT31: 2.92449628 | AU31: 2.952823456 | AW31: 1.885270624 | AX31: 2.521371538 | AY31: 2.226850794 | AZ31: 2.038626234 | BA31: 1.974378658 | BB31: 2.038626234 | BC31: 2.12929957
B32: EQMA3B<XBSP> | C32: Eqtl Maranhao | D32: Energia elétrica | E32: Energia elétrica | F32: 3774.587838 | H32: 11.25393547 | I32: 7.196140251 | J32: 6.332838292 | K32: 6.291606606 | L32: 5.01759719 | M32: 6.332838292 | N32: 7.218423561 | P32: 8.016724775 | Q32: 5.599513091 | R32: 4.665149216 | S32: 5.852831213 | T32: 4.781729244 | U32: 5.599513091 | V32: 5.783189508 | X32: 0.2370466157 | Y32: 0.2421226343 | Z32: 0.3738320666 | AA32: 0.3916110728 | AB32: 0.483585824 | AC32: 0.3738320666 | AD32: 0.3456396427 | AF32: 2.629358765 | AG32: 2.21584382 | AH32: 1.189651847 | AI32: 1.302031844 | AJ32: 0.9876050117 | AK32: 2.629358765 | AL32: 0.3756067924 | AM32: 1.664898257 | AO32: 1.918879636 | AP32: 1.259638478 | AQ32: 0.8475817031 | AR32: 0.862715437 | AS32: 0.6345279459 | AT32: 0.862715437 | AU32: 1.10466864 | AW32: 0.7595969586 | AX32: 0.9670342942 | AY32: 1.18589837 | AZ32: 1.804544871 | BA32: 1.856968625 | BB32: 1.18589837 | BC32: 1.314808624
B33: EQPA3<XBSP> | C33: Eqtl Para | D33: Energia elétrica | E33: Energia elétrica | F33: 13435.63442 | H33: 10.14543886 | I33: 11.0502705 | J33: 9.027062266 | K33: 7.562701385 | L33: 6.11766017 | M33: 9.027062266 | N33: 8.780626636 | P33: 6.11056336 | Q33: 6.913092694 | R33: 7.48462642 | S33: 6.146722138 | T33: 4.938505286 | U33: 6.146722138 | V33: 6.31870198 | X33: 0.3656746517 | Y33: 0.2665130778 | Z33: 0.2842302534 | AA33: 0.2247812548 | AB33: 0.2664690342 | AC33: 0.2665130778 | AD33: 0.2815336544 | AF33: 2.161150174 | AG33: 3.372867961 | AH33: 4.861367108 | AI33: 3.622486454 | AJ33: 3.124108401 | AK33: 4.861367108 | AL33: 0.6426398854 | AM33: 3.42839602 | AO33: 1.240873463 | AP33: 1.395716871 | AQ33: 1.650339987 | AR33: 1.621942678 | AS33: 1.266397377 | AT33: 1.395716871 | AU33: 1.435054075 | AW33: 1.183401546 | AX33: 1.275612334 | AY33: 1.62551839 | AZ33: 1.080485653 | BA33: 0.8786248246 | BB33: 1.183401546 | BC33: 1.20872855
B34: EQTL3<XBSP> | C34: Equatorial | D34: Energia elétrica | E34: Energia elétrica | F34: 38121.00479 | H34: 7.864745491 | I34: 6.050011428 | J34: 21.39157108 | K34: 19.31593572 | L34: 16.88051577 | M34: 16.88051577 | N34: 14.3005559 | P34: 6.3031078 | Q34: 6.576127693 | R34: 9.279638221 | S34: 7.757396687 | T34: 7.428162469 | U34: 7.428162469 | V34: 7.468886574 | X34: 0.4321699199 | Y34: 0.5336921243 | Z34: 0.5808082376 | AA34: 0.5379387333 | AB34: 0.5549668011 | AC34: 0.5379387333 | AD34: 0.5279151632 | AF34: 2.233878447 | AG34: 1.739959151 | AH34: 1.789040018 | AI34: 1.89159935 | AJ34: 1.667865594 | AK34: 2.233878447 | AL34: 0.7466232533 | AM34: 1.864468512 | AO34: 1.307894218 | AP34: 0.922075644 | AQ34: 1.08322804 | AR34: 0.9782102147 | AS34: 0.8771937625 | AT34: 0.9782102147 | AU34: 1.033720376 | AW34: 1.813114988 | AX34: 2.529738957 | AY34: 4.755948983 | AZ34: 3.389511082 | BA34: 3.386713434 | BB34: 3.386713434 | BC34: 3.175005489
B35: GEPA4<XBSP> | C35: Ger Paranap | D35: Energia elétrica | E35: Energia elétrica | F35: 2747.064203 | H35: 5.887699795 | I35: -355.1968523 | J35: 10.46343653 | K35: 7.214825039 | L35: 8.157451605 | M35: 7.214825039 | N35: 7.930853242 | P35: 2.107773111 | Q35: 6.843521589 | R35: 4.105045655 | U35: 4.105045655 | V35: 4.352113452 | X35: 0.2087543507 | Y35: 0.2949603261 | Z35: 0.2830414911 | AC35: 0.2830414911 | AD35: 0.262252056 | AF35: 2.161580253 | AG35: 1.638513019 | AH35: 1.359774008 | AK35: 2.161580253 | AL35: 0 | AM35: 1.71995576 | AO35: 2.847617226 | AP35: 2.320839598 | AQ35: 1.858397429 | AR35: 1.770790682 | AS35: 2.002146859 | AT35: 2.002146859 | AU35: 2.159958359 | AW35: -0.01850203893 | AX35: 1.805987468 | AY35: 0.9611339399 | BA35: 0.4197771825 | BB35: 0.6904555612 | BC35: 1.06229953
B36: LIGT3<XBSP> | C36: Light S/A | D36: Energia elétrica | E36: Energia elétrica | F36: 2645.1428 | H36: 10.67403213 | I36: 10.89485553 | J36: -0.3041025066 | K36: 11.68058955 | L36: -7.142992011 | M36: 10.67403213 | N36: 11.08315907 | P36: 5.893294558 | Q36: 6.542662835 | R36: -8.756938661 | S36: 4.959513993 | T36: 5.528876785 | U36: 5.528876785 | V36: 5.731087043 | X36: 0.5673236582 | Y36: 0.7179766098 | Z36: 0.8610452881 | AA36: 0.7812665705 | AB36: 0.818233411 | AC36: 0.7812665705 | AD36: 0.7491691075 | AF36: 1.043721932 | AG36: 0.5012566621 | AH36: 0.6063544795 | AI36: 0.9627722794 | AJ36: 0.9839865487 | AK36: 1.043721932 | AL36: 0.9427669562 | AM36: 0.8196183803 | AO36: 0.5649302586 | AP36: 0.2910173557 | AQ36: 0.1301512055 | AR36: 0.2111344555 | AS36: 0.1862772029 | AT36: 0.2111344555 | AU36: 0.2767020956 | AW36: 2.779858012 | AX36: 4.139292559 | AZ36: 3.677377655 | BA36: 4.287716792 | BB36: 3.908335107 | BC36: 3.721061255
B37: NEOE3<XBSP> | C37: Neoenergia | D37: Energia elétrica | E37: Energia elétrica | F37: 23995.68966 | H37: 7.613778263 | I37: 5.009811083 | J37: 3.974811314 | K37: 5.802524301 | L37: 5.379123122 | M37: 5.379123122 | N37: 5.556009617 | P37: 6.775799581 | Q37: 5.495025646 | R37: 4.781233765 | S37: 5.192520119 | T37: 5.223316393 | U37: 5.223316393 | V37: 5.493579101 | X37: 0.5522629229 | Y37: 0.6626405492 | Z37: 0.6987742805 | AA37: 0.6394738512 | AB37: 0.6805034443 | AC37: 0.6626405492 | AD37: 0.6467310096 | AF37: 1.01039841 | AG37: 0.8232229112 | AH37: 0.7013409298 | AI37: 0.8661412535 | AJ37: 0.7591170408 | AK37: 1.01039841 | AL37: 0.751304667 | AM37: 0.832044109 | AO37: 0.6685767964 | AP37: 0.455542882 | AQ37: 0.4382910645 | AR37: 0.5837462713 | AS37: 0.5376591543 | AT37: 0.5376591543 | AU37: 0.5367632337 | AW37: 3.354432373 | AX37: 3.420665354 | AY37: 3.150185042 | AZ37: 3.09113618 | BA37: 3.303734243 | BB37: 3.303734243 | BC37: 3.264030638
B38: REDE3<XBSP> | C38: Rede Energia | D38: Energia elétrica | E38: Energia elétrica | F38: 14497.92158 | H38: 25.66321136 | I38: 9.087662525 | J38: 7.667361396 | K38: 8.426390749 | L38: 8.344338838 | M38: 8.426390749 | N38: 11.83779297 | P38: 12.25406778 | Q38: 6.242493947 | R38: 5.311865499 | S38: 5.348932216 | T38: 5.398751392 | U38: 5.398751392 | V38: 6.911222168 | X38: 0.2783663203 | Y38: 0.4159214793 | Z38: 0.4899678109 | AA38: 0.4711841225 | AB38: 0.4929018718 | AC38: 0.4711841225 | AD38: 0.429668321 | AF38: 5.60703591 | AG38: 3.713397751 | AH38: 2.959505147 | AI38: 3.473398133 | AJ38: 3.364350497 | AK38: 5.60703591 | AL38: 0.600022998 | AM38: 3.823537487 | AO38: 2.066760854 | AP38: 0.8841068782 | AQ38: 0.7536984341 | AR38: 0.8660317907 | AS38: 0.8523683645 | AT38: 0.8660317907 | AU38: 1.084593264 | AW38: 2.107779651 | AX38: 2.216704339 | AY38: 2.15796134 | AZ38: 2.036868748 | BA38: 2.111753811 | BB38: 2.111753811 | BC38: 2.126213578
B39: RNEW4<XBSP> | C39: Renova | D39: Energia elétrica | E39: Energia elétrica | F39: 266.9478328 | H39: 8.20112253 | I39: 6.24012904 | J39: 0.4054902812 | K39: -34.77276465 | L39: 9.107083457 | M39: 6.24012904 | N39: 5.988456327 | P39: 162.6868808 | Q39: 3.479266663 | R39: 1.352457168 | S39: 4.512522412 | T39: 4.023905408 | U39: 4.023905408 | V39: 3.342037913 | X39: 0.878431846 | Y39: 0.8212118205 | Z39: 0.6688079575 | AA39: 0.7729881049 | AB39: 0.8089101998 | AC39: 0.8089101998 | AD39: 0.7900699857 | AF39: -0.1661049449 | AG39: -0.3825753982 | AH39: 0.5440621281 | AI39: 0.3449382685 | AJ39: 0.3072924277 | AK39: 0.5440621281 | AL39: 0.5648112813 | AM39: 0.3987642748 | AO39: 2.60981294 | AP39: 2.041219032 | AQ39: 1.526695868 | AR39: 1.409908794 | AS39: 1.316748395 | AT39: 1.526695868 | AU39: 1.780877006 | AW39: 142.3205592 | AX39: 2.653754813 | AY39: 0.8831934404 | AZ39: 3.471060908 | BA39: 3.206376137 | BB39: 3.206376137 | BC39: 2.553596325
B40: SAEN3<XBSP> | C40: Safira Energ | D40: Energia elétrica | E40: Energia elétrica | AX40: 0.2388973384 | AY40: 0.2944723618 | AZ40: 0.6134776247 | BB40: 0.2944723618 | BC40: 0.3822824416
B41: SRNA3<XBSP> | C41: Serena | D41: Energia elétrica | E41: Energia elétrica | F41: 5155.909185 | H41: 144.9654981 | I41: 4.324598052 | J41: -678.0664047 | K41: 101.1756145 | L41: 18.33624031 | M41: 18.33624031 | N41: 11.33041918 | P41: 16.71222772 | Q41: 14.41620184 | R41: 12.98569051 | S41: 10.89241871 | T41: 7.816860115 | U41: 12.98569051 | V41: 12.56467978 | X41: 0.4323448146 | Y41: 0.4673148199 | Z41: 0.5869506202 | AA41: 0.6129986793 | AB41: 0.6952697641 | AC41: 0.5869506202 | AD41: 0.5589757396 | AF41: 2.118046709 | AG41: 1.630698964 | AH41: 1.156042658 | AI41: 1.221041999 | AJ41: 0.9703264549 | AK41: 2.118046709 | AL41: 0.4581232561 | AM41: 1.419231357 | AO41: 6.491440047 | AP41: 10.85638291 | AQ41: 2.23482873 | AR41: 2.093319129 | AS41: 1.565493439 | AT41: 2.23482873 | AU41: 4.648292851 | AW41: 6.528653231 | AX41: 5.971962347 | AY41: 7.014224926 | AZ41: 6.403801446 | BA41: 5.210600719 | BB41: 6.403801446 | BC41: 6.225848534
B42: TAEE11<XBSP> | C42: Taesa | D42: Energia elétrica | E42: Energia elétrica | F42: 11821.71627 | H42: 5.074026546 | I42: 5.659912992 | J42: 8.241551688 | K42: 9.666283789 | L42: 7.662624209 | M42: 7.662624209 | N42: 7.260879845 | P42: 5.273387125 | Q42: 5.486736223 | R42: 7.745084987 | S42: 9.196140293 | T42: 8.321836994 | U42: 7.745084987 | V42: 7.204637124 | X42: 0.3508164715 | Y42: 0.3515385913 | Z42: 0.4040794683 | AA42: 0.4228709159 | AB42: 0.4617261274 | AC42: 0.4040794683 | AD42: 0.3982063149 | AF42: 1.905465416 | AG42: 1.874328492 | AH42: 1.817795291 | AI42: 1.979526571 | AJ42: 1.741777989 | AK42: 1.979526571 | AL42: 0.8798962412 | AM42: 1.863778752 | AO42: 3.224158821 | AP42: 3.608655474 | AQ42: 4.56476313 | AR42: 3.932604235 | AS42: 3.246525941 | AT42: 3.608655474 | AU42: 3.71534152 | AW42: 1.668778826 | AX42: 1.856633424 | AY42: 2.867903949 | AZ42: 3.568423781 | BA42: 3.609962454 | BB42: 2.867903949 | BC42: 2.714340487
B43: TRPL4<XBSP> | C43: Tran Paulist | D43: Energia elétrica | E43: Energia elétrica | F43: 17828.45678 | H43: 5.45099757 | I43: 5.306254034 | J43: 6.69879522 | K43: 6.145613699 | L43: 6.001922481 | M43: 6.001922481 | N43: 5.920716601 | P43: 4.746257964 | Q43: 5.460445674 | R43: 6.778627185 | S43: 6.976064767 | T43: 7.193504201 | U43: 6.778627185 | V43: 6.230979958 | X43: 0.195030716 | Y43: 0.2959937811 | Z43: 0.3251700591 | AA43: 0.319195117 | AB43: 0.3911316259 | AC43: 0.319195117 | AD43: 0.3053042598 | AF43: 1.332206461 | AG43: 1.112384469 | AH43: 0.9367554292 | AI43: 1.004618349 | AJ43: 0.8616497932 | AK43: 1.332206461 | AL43: 0.6467839769 | AM43: 1.0495229 | AO43: 4.95709498 | AP43: 2.894304256 | AQ43: 2.780317653 | AR43: 2.809162346 | AS43: 2.353548504 | AT43: 2.809162346 | AU43: 3.158885548 | AW43: 0.453074668 | AX43: 1.417097326 | AY43: 1.932409084 | AZ43: 1.889537501 | BA43: 2.340411811 | BB43: 1.889537501 | BC43: 1.606506078
B44: UPKP3<XBSP> | C44: Uptick | D44: Energia elétrica | E44: Energia elétrica | AW44: -0.1730119981 | AX44: -0.1308644407 | AY44: -0.08339610135 | AZ44: -0.07777911093 | BA44: -0.230812052 | BB44: -0.1308644407
M70: =IFERROR(MEDIAN(H70:L70),"") ->  | N70: =IFERROR(AVERAGEIFS(H70:L70,H70:L70,">0",H70:L70,"<50"),"") ->  | U70: =IFERROR(MEDIAN(P70:T70),"") ->  | V70: =IFERROR(AVERAGEIFS(P70:T70,P70:T70,">0",P70:T70,"<50"),"") ->  | AC70: =IFERROR(MEDIAN(X70:AB70),"") ->  | AD70: =IFERROR(AVERAGE(X70:AB70),"") ->  | AK70: =IF(MAX(AF70:AJ70)=0,"",MAX(AF70:AJ70)) ->  | AL70: =IFERROR(AJ70/AK70,"") ->  | AM70: =IFERROR(AVERAGEIFS(AF70:AJ70,AF70:AJ70,">0",AF70:AJ70,"<30"),"") ->  | AT70: =IFERROR(MEDIAN(AO70:AS70),"") ->  | AU70: =IFERROR(AVERAGEIFS(AO70:AS70,AO70:AS70,">0",AO70:AS70,"<50"),"") ->  | BB70: =IFERROR(MEDIAN(AW70:BA70),"") ->  | BC70: =IFERROR(AVERAGEIFS(AW70:BA70,AW70:BA70,">0",AW70:BA70,"<50"),"") -> 
M134: =IFERROR(MEDIAN(H134:L134),"") ->  | N134: =IFERROR(AVERAGEIFS(H134:L134,H134:L134,">0",H134:L134,"<50"),"") ->  | U134: =IFERROR(MEDIAN(P134:T134),"") ->  | V134: =IFERROR(AVERAGEIFS(P134:T134,P134:T134,">0",P134:T134,"<50"),"") ->  | AC134: =IFERROR(MEDIAN(X134:AB134),"") ->  | AD134: =IFERROR(AVERAGE(X134:AB134),"") ->  | AK134: =IF(MAX(AF134:AJ134)=0,"",MAX(AF134:AJ134)) ->  | AL134: =IFERROR(AJ134/AK134,"") ->  | AM134: =IFERROR(AVERAGEIFS(AF134:AJ134,AF134:AJ134,">0",AF134:AJ134,"<30"),"") ->  | AT134: =IFERROR(MEDIAN(AO134:AS134),"") ->  | AU134: =IFERROR(AVERAGEIFS(AO134:AS134,AO134:AS134,">0",AO134:AS134,"<50"),"") ->  | BB134: =IFERROR(MEDIAN(AW134:BA134),"") ->  | BC134: =IFERROR(AVERAGEIFS(AW134:BA134,AW134:BA134,">0",AW134:BA134,"<50"),"") -> 
M198: =IFERROR(MEDIAN(H198:L198),"") ->  | N198: =IFERROR(AVERAGEIFS(H198:L198,H198:L198,">0",H198:L198,"<50"),"") ->  | U198: =IFERROR(MEDIAN(P198:T198),"") ->  | V198: =IFERROR(AVERAGEIFS(P198:T198,P198:T198,">0",P198:T198,"<50"),"") ->  | AC198: =IFERROR(MEDIAN(X198:AB198),"") ->  | AD198: =IFERROR(AVERAGE(X198:AB198),"") ->  | AK198: =IF(MAX(AF198:AJ198)=0,"",MAX(AF198:AJ198)) ->  | AL198: =IFERROR(AJ198/AK198,"") ->  | AM198: =IFERROR(AVERAGEIFS(AF198:AJ198,AF198:AJ198,">0",AF198:AJ198,"<30"),"") ->  | AT198: =IFERROR(MEDIAN(AO198:AS198),"") ->  | AU198: =IFERROR(AVERAGEIFS(AO198:AS198,AO198:AS198,">0",AO198:AS198,"<50"),"") ->  | BB198: =IFERROR(MEDIAN(AW198:BA198),"") ->  | BC198: =IFERROR(AVERAGEIFS(AW198:BA198,AW198:BA198,">0",AW198:BA198,"<50"),"") -> 

Sheet Dividendos
E1: Dividendos
B2: Data: | C2: =Factsheet!E2 -> 2024-09-26 | D2: ← Não Modificar
F3: DIVIDENDOS+JCP's ANUALIZADOS
F4: =EOMONTH(H4,-12) -> 2020-12-31 | H4: =EOMONTH(J4,-12) -> 2021-12-31 | J4: =EOMONTH(L4,-12) -> 2022-12-31 | L4: =DATE(YEAR(N4)-1,12,31) -> 2023-12-31 | N4: =$C$2 -> 2024-09-26 | P4: Indicadores dos Últimos 5 anos
B5: =_xll.ECOSECURITIES("stock","active","true",,"xbsp",,,"Subsector Bovespa="&SUBSTITUTE(_xll.ECONOMATICA(Factsheet!B5,"Subsector Bovespa"),",","\,")) -> Código | C5: =_xll.ECONOMATICA($B$6:$B$194,"name") -> Nome | D5: =_xll.ECONOMATICA($B$6:$B$197,"Subsector Bovespa",,,,,,,,,"Subsetor Bovespa") -> Subsetor Bovespa | E5: =_xll.ECONOMATICA($B$6:$B$197,"Segment Bovespa",,,,,,,,,"Segmento Bovespa") -> Segmento Bovespa | F5: =_xll.ECONOMATICA($B$6:$B$194,"Div Yld (start)",,F4,,,,"DECIMAL",,,"% Dividend Yield") -> % Dividend Yield | G5: =_xll.ECONOMATICA($B$6:$B$194,"Divid per Share",,F4,,,,,,,"$") -> $ | H5: =_xll.ECONOMATICA($B$6:$B$194,"Div Yld (start)",,H4,,,,"DECIMAL",,,"% Dividend Yield") -> % Dividend Yield | I5: =_xll.ECONOMATICA($B$6:$B$194,"Divid per Share",,H4,,,,,,,"$") -> $ | J5: =_xll.ECONOMATICA($B$6:$B$194,"Div Yld (start)",,J4,,,,"DECIMAL",,,"% Dividend Yield") -> % Dividend Yield | K5: =_xll.ECONOMATICA($B$6:$B$194,"Divid per Share",,J4,,,,,,,"$") -> $ | L5: =_xll.ECONOMATICA($B$6:$B$194,"Div Yld (start)",,L4,,,,"DECIMAL",,,"% Dividend Yield") -> % Dividend Yield | M5: =_xll.ECONOMATICA($B$6:$B$194,"Divid per Share",,L4,,,,,,,"$") -> $ | N5: =_xll.ECONOMATICA($B$6:$B$194,"Div Yld (start)",,N4,,,,"DECIMAL",,,"% Dividend Yield") -> % Dividend Yield | O5: =_xll.ECONOMATICA($B$6:$B$194,"Divid per Share",,N4,,,,,,,"$") -> $ | P5: Média | Q5: Mediana | R5: Máximo | S5: Mínimo
B6: AESB3<XBSP> | C6: AES Brasil | D6: Energia elétrica | E6: Energia elétrica | F6: 0.06553939662 | G6: 1.053218104 | H6: 0.01517122947 | I6: 0.2507804232 | J6: 0.009706468107 | K6: 0.107450602 | L6: 0 | M6: 0 | N6: 0.006614522147 | O6: 0.07461180982 | P6: =IF(MAX(,,F6,H6,J6,L6,N6)=0,"",AVERAGE(,,F6,H6,J6,L6,N6)) -> 0.01386165948 | Q6: =IF(MAX(,,F6,H6,J6,L6,N6)=0,"",MEDIAN(,,F6,H6,J6,L6,N6)) -> 0.006614522147 | R6: =IF(MAX(,,F6,H6,J6,L6,N6)=0,"",MAX(,,F6,H6,J6,L6,N6)) -> 0.06553939662 | S6: =IF(MAX(,,F6,H6,J6,L6,N6)=0,"",MIN(,,F6,H6,J6,L6,N6)) -> 0
B7: AESO3<XBSP> | C7: Aesoperacoes | D7: Energia elétrica | E7: Energia elétrica | Q7: =IF(MAX(,,F7,H7,J7,L7,N7)=0,"",MEDIAN(,,F7,H7,J7,L7,N7)) -> 
B8: AFLT3<XBSP> | C8: Afluente T | D8: Energia elétrica | E8: Energia elétrica | F8: 0.06523152292 | G8: 0.7227652739 | H8: 0.06390387112 | I8: 0.6300921693 | J8: 0.02663292282 | K8: 0.2362340254 | L8: 0.06410748826 | M8: 0.5942764162 | N8: 0.07145766021 | O8: 0.5823799307 | P8: 0.04161906648 | Q8: 0.06390387112 | R8: 0.07145766021 | S8: 0
B9: ALUP11<XBSP> | C9: Alupar | D9: Energia elétrica | E9: Energia elétrica | F9: 0.025 | G9: 0.212647929 | H9: 0.03100775194 | I9: 0.2588757396 | J9: 0.0510373444 | K9: 0.3790680473 | L9: 0.06424929178 | M9: 0.5591715976 | N9: 0.04477366255 | O9: 0.4184615385 | P9: 0.03086686438 | Q9: 0.03100775194 | R9: 0.06424929178 | S9: 0
B10: CBEE3<XBSP> | C10: Ampla Energ | D10: Energia elétrica | E10: Energia elétrica | F10: 0.02010621515 | G10: 0.39810306 | H10: 0.003520332161 | I10: 0.07005461 | J10: 0.003585261304 | K10: 0.08246101 | L10: 0 | M10: 0 | O10: 0 | P10: 0.004535301436 | Q10: 0.00176016608 | R10: 0.02010621515 | S10: 0
B11: AURE3<XBSP> | C11: Auren | D11: Energia elétrica | E11: Energia elétrica | L11: 0.2036659878 | M11: 3 | N11: 0.1389904901 | O11: 1.9 | P11: 0.08566411947 | Q11: 0.06949524506 | R11: 0.2036659878 | S11: 0
B12: CEBR6<XBSP> | C12: Ceb | D12: Energia elétrica | E12: Energia elétrica | F12: 0.03427907061 | G12: 0.36699173 | H12: 0.7143825116 | I12: 20.85996934 | J12: 0.2526570504 | K12: 3.895971718 | L12: 0.2885083077 | M12: 2.91681899 | N12: 0.1391802039 | O12: 2.087703059 | P12: 0.2041438777 | Q12: 0.1391802039 | R12: 0.7143825116 | S12: 0
B13: CEED3<XBSP> | C13: Ceee-D | D13: Energia elétrica | E13: Energia elétrica | F13: 0 | G13: 0 | H13: 0 | I13: 0 | J13: 0 | K13: 0 | L13: 0 | M13: 0 | N13: 0 | O13: 0
B14: CGEE3<XBSP> | C14: Ceee-G | D14: Energia elétrica | E14: Energia elétrica
B15: CLSC4<XBSP> | C15: Celesc | D15: Energia elétrica | E15: Energia elétrica | F15: 0.03841614996 | G15: 1.92484144 | H15: 0.125400422 | I15: 6.813838479 | J15: 0.05488946142 | K15: 3.731934482 | L15: 0.2059956527 | M15: 11.2459637 | N15: 0.1573851138 | O15: 10.38741751 | P15: 0.08315525714 | Q15: 0.05488946142 | R15: 0.2059956527 | S15: 0
B16: GPAR3<XBSP> | C16: Celgpar | D16: Energia elétrica | E16: Energia elétrica | G16: 0 | H16: 0.01844516062 | I16: 0.507241917 | K16: 15.67023263 | L16: 0 | M16: 0 | O16: 0 | P16: 0.004611290155 | Q16: 0 | R16: 0.01844516062 | S16: 0
B17: CMIG4<XBSP> | C17: Cemig | D17: Energia elétrica | E17: Energia elétrica | F17: 0.02407846518 | G17: 0.1692537026 | H17: 0.1069365811 | I17: 0.8100963676 | J17: 0.1349576923 | K17: 1.046920323 | L17: 0.1158640029 | M17: 0.9928653788 | N17: 0.1661988432 | O17: 1.595508894 | P17: 0.07829079781 | Q17: 0.1069365811 | R17: 0.1661988432 | S17: 0
B18: CEEB3<XBSP> | C18: Coelba | D18: Energia elétrica | E18: Energia elétrica | F18: 0.01249278141 | G18: 0.4990866175 | H18: 0.1473033698 | I18: 6.547634788 | J18: 0.1924077989 | K18: 6.445661262 | L18: 0.1150860696 | M18: 4.563162658 | N18: 0.07346582414 | O18: 2.909981294 | P18: 0.07725083483 | Q18: 0.07346582414 | R18: 0.1924077989 | S18: 0
B19: COCE5<XBSP> | C19: Coelce | D19: Energia elétrica | E19: Energia elétrica | F19: 0.03402841243 | G19: 2.12371322 | H19: 0.06027462433 | I19: 3.61647746 | J19: 0.03345606721 | K19: 1.943462944 | L19: 0.00683426964 | M19: 0.30795219 | N19: 0.02070346362 | O19: 0.96457437 | P19: 0.02218526246 | Q19: 0.02070346362 | R19: 0.06027462433 | S19: 0
B20: COMR3<XBSP> | C20: Comerc | D20: Energia elétrica | E20: Energia elétrica
B21: CPLE6<XBSP> | C21: Copel | D21: Energia elétrica | E21: Energia elétrica | F21: 0.04488426784 | G21: 0.310015638 | H21: 0.1604381292 | I21: 1.20232334 | J21: 0.1567799624 | K21: 0.99285095 | L21: 0.06439305942 | M21: 0.5093491 | N21: 0.06180892539 | O21: 0.55504415 | P21: 0.06975776346 | Q21: 0.06180892539 | R21: 0.1604381292 | S21: 0
B22: CSRN3<XBSP> | C22: Cosern | D22: Energia elétrica | E22: Energia elétrica | F22: 0.008811156406 | G22: 0.1647686248 | H22: 0.124683109 | I22: 2.178213915 | J22: 0.2548332365 | K22: 4.049300128 | L22: 0.1237248946 | M22: 2.647712745 | N22: 0.1147646403 | O22: 2.70844551 | P22: 0.08954529098 | Q22: 0.1147646403 | R22: 0.2548332365 | S22: 0
B23: CPFE3<XBSP> | C23: CPFL Energia | D23: Energia elétrica | E23: Energia elétrica | F23: 0.05066029288 | G23: 1.800973412 | H23: 0.1137152764 | I23: 3.701432247 | J23: 0.1208453416 | K23: 3.242280516 | L23: 0.08691528777 | M23: 2.885587554 | N23: 0.07882016588 | O23: 2.753976596 | P23: 0.0644223378 | Q23: 0.07882016588 | R23: 0.1208453416 | S23: 0
B24: EKTR4<XBSP> | C24: Elektro | D24: Energia elétrica | E24: Energia elétrica | F24: 0.01391512451 | G24: 0.3616540861 | H24: 0.1312430114 | I24: 3.542248877 | J24: 0.2739968158 | K24: 7.877408455 | L24: 0.1148264181 | M24: 4.020072897 | N24: 0.254601998 | O24: 9.547574924 | P24: 0.1126547668 | Q24: 0.1148264181 | R24: 0.2739968158 | S24: 0
B25: ELET3<XBSP> | C25: Eletrobras | D25: Energia elétrica | E25: Energia elétrica | F25: 0.04290406285 | G25: 1.621773576 | H25: 0.06504305675 | I25: 2.385128891 | J25: 0.02207838854 | K25: 0.7376389612 | L25: 0.005245226438 | M25: 0.2209289376 | N25: 0.01115474116 | O25: 0.4038016299 | P25: 0.02091792511 | Q25: 0.01115474116 | R25: 0.06504305675 | S25: 0
B26: LIPR3<XBSP> | C26: Eletropar | D26: Energia elétrica | E26: Energia elétrica | F26: 0 | G26: 0 | H26: 0.02560344978 | I26: 2.022672533 | J26: 0.02462433075 | K26: 1.817768096 | L26: 0.03523900487 | M26: 2.466730341 | O26: 0.3916475757 | P26: 0.01424446423 | Q26: 0.01231216538 | R26: 0.03523900487 | S26: 0
B27: EMAE4<XBSP> | C27: Emae | D27: Energia elétrica | E27: Energia elétrica | F27: 0.03911949553 | G27: 1.44468297 | H27: 0.1071726106 | I27: 8.081886566 | J27: 0.01159750711 | K27: 0.881294565 | L27: 0.04835020591 | M27: 3.2873305 | N27: 0.04378337222 | O27: 2.933485939 | P27: 0.03571759877 | Q27: 0.03911949553 | R27: 0.1071726106 | S27: 0
B28: ENBR3<XBSP> | C28: Energias BR | D28: Energia elétrica | E28: Energia elétrica | F28: 0.02692195798 | G28: 0.584470115 | H28: 0.05088774702 | I28: 0.999944229 | J28: 0.1047295965 | K28: 2.19303775 | L28: 0.06830246022 | M28: 1.420008148 | O28: 0 | P28: 0.04180696028 | Q28: 0.0389048525 | R28: 0.1047295965 | S28: 0
B29: ENGI11<XBSP> | C29: Energisa | D29: Energia elétrica | E29: Energia elétrica | F29: 0.01120866804 | G29: 0.12 | H29: 0.03342245989 | I29: 0.35 | J29: 0.07967749585 | K29: 0.672 | L29: 0.03392897535 | M29: 0.3 | N29: 0.04221190376 | O29: 0.4 | P29: 0.02863564327 | Q29: 0.03342245989 | R29: 0.07967749585 | S29: 0
B30: ENMT4<XBSP> | C30: Energisa Mt | D30: Energia elétrica | E30: Energia elétrica | F30: 0.01731062267 | G30: 0.5676153174 | H30: 0.1490403611 | I30: 4.918331918 | J30: 0.04394074452 | K30: 3.539866378 | L30: 0.04328832721 | M30: 3.549642831 | N30: 0.05936467522 | O30: 3.858703889 | P30: 0.04470639011 | Q30: 0.04328832721 | R30: 0.1490403611 | S30: 0
B31: ENEV3<XBSP> | C31: Eneva | D31: Energia elétrica | E31: Energia elétrica | F31: 0 | G31: 0 | H31: 0 | I31: 0 | J31: 0 | K31: 0 | L31: 0 | M31: 0 | N31: 0 | O31: 0
B32: EGIE3<XBSP> | C32: Engie Brasil | D32: Energia elétrica | E32: Energia elétrica | F32: 0.03394909148 | G32: 1.724613847 | H32: 0.04069835695 | I32: 1.788285804 | J32: 0.0778296916 | K32: 2.989438454 | L32: 0.07659533657 | M32: 2.901431349 | N32: 0.06064378082 | O32: 2.539761541 | P32: 0.04138803677 | Q32: 0.04069835695 | R32: 0.0778296916 | S32: 0
B33: EQMA3B<XBSP> | C33: Eqtl Maranhao | D33: Energia elétrica | E33: Energia elétrica | F33: 0.060625 | G33: 2.91 | H33: 0.09625 | I33: 4.62 | J33: 0.04909310762 | K33: 2.03 | L33: 0.1116 | M33: 2.79 | N33: 0.08409893993 | O33: 2.38 | P33: 0.05738100679 | Q33: 0.060625 | R33: 0.1116 | S33: 0
B34: EQPA3<XBSP> | C34: Eqtl Para | D34: Energia elétrica | E34: Energia elétrica | F34: 0.08284023669 | G34: 0.28 | H34: 0.1242424242 | I34: 0.41 | J34: 0.1721754386 | K34: 0.88326 | L34: 0.02319786918 | M34: 0.147538448 | N34: 0.11875 | O34: 0.7599999997 | P34: 0.07445799552 | Q34: 0.08284023669 | R34: 0.1721754386 | S34: 0
B35: EQTL3<XBSP> | C35: Equatorial | D35: Energia elétrica | E35: Energia elétrica | F35: 0.0140398552 | G35: 0.3199683 | H35: 0.0310880829 | I35: 0.72 | J35: 0.02830605927 | K35: 0.64 | L35: 0.01295336787 | M35: 0.35 | N35: 0.01389297525 | O35: 0.4499934685 | P35: 0.01432576293 | Q35: 0.01389297525 | R35: 0.0310880829 | S35: 0
B36: GEPA4<XBSP> | C36: Ger Paranap | D36: Energia elétrica | E36: Energia elétrica | F36: 0.03969492153 | G36: 1.886302671 | H36: 0.0671824207 | I36: 2.93990273 | J36: 0.0404612652 | K36: 1.339267878 | L36: 0.1126830071 | M36: 3.03680704 | N36: 0.1650995868 | O36: 4.193529504 | P36: 0.06073160018 | Q36: 0.0404612652 | R36: 0.1650995868 | S36: 0
B37: LIGT3<XBSP> | C37: Light S/A | D37: Energia elétrica | E37: Energia elétrica | F37: 0 | G37: 0 | H37: 0.0181519679 | I37: 0.44109282 | J37: 0.02159029758 | K37: 0.2536859966 | L37: 0 | M37: 0 | N37: 0 | O37: 0 | P37: 0.005677466497 | Q37: 0 | R37: 0.02159029758 | S37: 0
B38: NEOE3<XBSP> | C38: Neoenergia | D38: Energia elétrica | E38: Energia elétrica | F38: 0.01642744706 | G38: 0.4087148828 | H38: 0.02983364217 | I38: 0.525668775 | J38: 0.04929964165 | K38: 0.7986541947 | L38: 0.07489334885 | M38: 1.15710224 | N38: 0.04456355509 | O38: 0.8297733958 | P38: =IF(MAX(,,F38,H38,J38,L38,N38)=0,"",AVERAGE(,,F38,H38,J38,L38,N38)) -> 0.03071680497 | Q38: 0.02983364217 | R38: =IF(MAX(,,F38,H38,J38,L38,N38)=0,"",MAX(,,F38,H38,J38,L38,N38)) -> 0.07489334885 | S38: =IF(MAX(,,F38,H38,J38,L38,N38)=0,"",MIN(,,F38,H38,J38,L38,N38)) -> 0
B39: REDE3<XBSP> | C39: Rede Energia | D39: Energia elétrica | E39: Energia elétrica | F39: 0.01094117647 | G39: 0.093 | H39: 0.08766513801 | I39: 0.9774662888 | J39: 0.07983795936 | K39: 0.5221402542 | L39: 0.1317172644 | M39: 0.7112732275 | N39: 0.1168813884 | O39: 0.675574425 | P39: 0.06100613237 | Q39: 0.07983795936 | R39: 0.1317172644 | S39: 0
B40: RNEW4<XBSP> | C40: Renova | D40: Energia elétrica | E40: Energia elétrica | F40: 0 | G40: 0 | H40: 0 | I40: 0 | J40: 0 | K40: 0 | L40: 0 | M40: 0 | N40: 0 | O40: 0
B41: SAEN3<XBSP> | C41: Safira Energ | D41: Energia elétrica | E41: Energia elétrica
B42: SRNA3<XBSP> | C42: Serena | D42: Energia elétrica | E42: Energia elétrica | F42: 0 | G42: 0 | H42: 0 | I42: 0 | J42: 0 | K42: 0 | L42: 0 | M42: 0 | N42: 0 | O42: 0
B43: TAEE11<XBSP> | C43: Taesa | D43: Energia elétrica | E43: Energia elétrica | F43: 0.1029833114 | G43: 1.070339883 | H43: 0.1351245974 | I43: 1.501234277 | J43: 0.1334780927 | K43: 1.61819941 | L43: 0.08406423499 | M43: 0.9715023424 | N43: 0.1002969409 | O43: 1.152411851 | P43: 0.07942102534 | Q43: 0.1002969409 | R43: 0.1351245974 | S43: 0
B44: TRPL4<XBSP> | C44: Tran Paulist | D44: Energia elétrica | E44: Energia elétrica | F44: 0.07704074402 | G44: 1.73958 | H44: 0.1290493348 | I44: 3.588862 | J44: 0.04370234471 | K44: 1.062404 | L44: 0.09582969565 | M44: 2.204083 | N44: 0.0941915812 | O44: 2.204083 | P44: 0.06283052862 | Q44: 0.07704074402 | R44: 0.1290493348 | S44: 0
B45: UPKP3<XBSP> | C45: Uptick | D45: Energia elétrica | E45: Energia elétrica
P70: =IF(MAX(,,F70,H70,J70,L70,N70)=0,"",AVERAGE(,,F70,H70,J70,L70,N70)) ->  | R70: =IF(MAX(,,F70,H70,J70,L70,N70)=0,"",MAX(,,F70,H70,J70,L70,N70)) ->  | S70: =IF(MAX(,,F70,H70,J70,L70,N70)=0,"",MIN(,,F70,H70,J70,L70,N70)) -> 
Q71: =IF(MAX(,,F71,H71,J71,L71,N71)=0,"",MEDIAN(,,F71,H71,J71,L71,N71)) -> 
P102: =IF(MAX(,,F102,H102,J102,L102,N102)=0,"",AVERAGE(,,F102,H102,J102,L102,N102)) ->  | R102: =IF(MAX(,,F102,H102,J102,L102,N102)=0,"",MAX(,,F102,H102,J102,L102,N102)) ->  | S102: =IF(MAX(,,F102,H102,J102,L102,N102)=0,"",MIN(,,F102,H102,J102,L102,N102)) -> 
P134: =IF(MAX(,,F134,H134,J134,L134,N134)=0,"",AVERAGE(,,F134,H134,J134,L134,N134)) ->  | R134: =IF(MAX(,,F134,H134,J134,L134,N134)=0,"",MAX(,,F134,H134,J134,L134,N134)) ->  | S134: =IF(MAX(,,F134,H134,J134,L134,N134)=0,"",MIN(,,F134,H134,J134,L134,N134)) -> 
Q135: =IF(MAX(,,F135,H135,J135,L135,N135)=0,"",MEDIAN(,,F135,H135,J135,L135,N135)) -> 
P166: =IF(MAX(,,F166,H166,J166,L166,N166)=0,"",AVERAGE(,,F166,H166,J166,L166,N166)) ->  | R166: =IF(MAX(,,F166,H166,J166,L166,N166)=0,"",MAX(,,F166,H166,J166,L166,N166)) ->  | S166: =IF(MAX(,,F166,H166,J166,L166,N166)=0,"",MIN(,,F166,H166,J166,L166,N166)) -> 

Sheet Base Factsheet
D1: Planilha Auxiliar Não Modificar
B2: Ínicio da Série: | C2: =_xll.ECONOMATICA(C5,"Series Start Date") -> 1986-01-03 | E2: Máximo: | F2: =ROUNDUP(MAX($C$8:$E$499),-1) -> 150
B3: Período: | C3: =IF(Factsheet!AC16="DESDE O INÍCIO",C2,Factsheet!AC16) -> 12M | E3: Mínimo: | F3: =ROUNDDOWN(MIN($C$8:$E$499),-1) -> 80
B4: Data Final: | C4: =Factsheet!E2:E2 -> 2024-09-26 | E4: =AtualizarLimitesGrafico("Factsheet","Base100",F3,F2) -> Base100, Min:80, Max:150
B5: Código: | C5: =Factsheet!B5&"<XBSP>" -> CMIG4<XBSP>
B7: Data | C7: =_xll.ECONOMATICA(C5,"ticker") -> CMIG4 | D7: IBOV | E7: CDI
B8: =_xll.ECONOMATICA(C5,"close",,C4,$C$3,"d",,,"true","false",,{"def.defdef=7"}) -> 2023-09-26 | C8: 100 | D8: =_xll.ECONOMATICA(D7,"close",,C4,C3,"d",,,"false","false",,{"def.defdef=7"}) -> 100 | E8: =_xll.ECONOMATICA("CDI Acumulado","close",,C4,C3,"d",,,"false","false",,{"def.defdef=7"}) -> 100
B9: 2023-09-27 | C9: 99.11858974 | D9: 100.117012 | E9: 100.0472792
B10: 2023-09-28 | C10: 99.35897436 | D10: 101.3462508 | E10: 100.0945808
B11: 2023-09-29 | C11: 99.43910256 | D11: 102.0769496 | E11: 100.1419048
B12: 2023-10-02 | C12: 99.11858974 | D12: 100.7561118 | E12: 100.1892511
B13: 2023-10-03 | C13: 96.875 | D13: 99.32186116 | E13: 100.2366197
B14: 2023-10-04 | C14: 97.83653846 | D14: 99.48685314 | E14: 100.2840109
B15: 2023-10-05 | C15: 97.75641026 | D15: 99.20367573 | E15: 100.3314244
B16: 2023-10-06 | C16: 97.11538461 | D16: 99.97915817 | E16: 100.3788603
B17: 2023-10-09 | C17: 99.11858974 | D17: 100.8429907 | E17: 100.4263186
B18: 2023-10-10 | C18: 100.0801282 | D18: 102.2273786 | E18: 100.4737994
B19: 2023-10-11 | C19: 100.3205128 | D19: 102.5021667 | E19: 100.5213026
B20: 2023-10-12
B21: 2023-10-13 | C21: 97.35576923 | D21: 101.3666723 | E21: 100.5688283
B22: 2023-10-16 | C22: 97.99679487 | D22: 102.0495225 | E22: 100.6163765
B23: 2023-10-17 | C23: 96.23397436 | D23: 101.5018377 | E23: 100.6639471
B24: 2023-10-18 | C24: 93.58974359 | D24: 99.88283914 | E24: 100.7115403
B25: 2023-10-19 | C25: 94.39102564 | D25: 99.83437751 | E25: 100.7591559
B26: 2023-10-20 | C26: 94.63141026 | D26: 99.09088465 | E26: 100.806794
B27: 2023-10-23 | C27: 95.43269231 | D27: 98.76620748 | E27: 100.8544547
B28: 2023-10-24 | C28: 95.59294872 | D28: 99.62210611 | E28: 100.9021378
B29: 2023-10-25 | C29: 94.95192308 | D29: 98.80600837 | E29: 100.9498436
B30: 2023-10-26 | C30: 97.43589744 | D30: 100.5109138 | E30: 100.9975719
B31: 2023-10-27 | C31: 95.59294872 | D31: 99.21879919 | E31: 101.0453227
B32: 2023-10-30 | C32: 94.31089744 | D32: 98.54465358 | E32: 101.0930962
B33: 2023-10-31 | C33: 94.07051282 | D33: 99.08071769 | E33: 101.1408923
B34: 2023-11-01 | C34: 98.07692308 | D34: 100.7526965 | E34: 101.1887109
B35: 2023-11-02
B36: 2023-11-03 | C36: 100.5608974 | D36: 103.4735273 | E36: 101.2347651
B37: 2023-11-06 | C37: 101.6025641 | D37: 103.7110892 | E37: 101.2808402
B38: 2023-11-07 | C38: 102.3237179 | D38: 104.4438896 | E38: 101.3269363
B39: 2023-11-08 | C39: 101.5224359 | D39: 104.3638588 | E39: 101.3730533
B40: 2023-11-09 | C40: 102.5641026 | D40: 104.2390442 | E40: 101.4191914
B41: 2023-11-10 | C41: 103.0448718 | D41: 105.582379 | E41: 101.4653504
B42: 2023-11-13 | C42: 101.9230769 | D42: 105.4440435 | E42: 101.5115305
B43: 2023-11-14 | C43: 104.9679487 | D43: 107.8571333 | E43: 101.5577316
B44: 2023-11-15
B45: 2023-11-16 | C45: 107.5320513 | D45: 109.1474702 | E45: 101.6039538
B46: 2023-11-17 | C46: 107.1314103 | D46: 109.2647887 | E46: 101.650197
B47: 2023-11-20 | C47: 104.0865385 | D47: 110.3014946 | E47: 101.6964612
B48: 2023-11-21 | C48: 100.7211538 | D48: 110.0116092 | E48: 101.7427465
B49: 2023-11-22 | C49: 90.94551282 | D49: 110.3700099 | E49: 101.7890528
B50: 2023-11-23 | C50: 88.06089744 | D50: 110.8432858 | E50: 101.8353802
B51: 2023-11-24 | C51: 84.61538461 | D51: 109.9163673 | E51: 101.8817287
B52: 2023-11-27 | C52: 85.09615385 | D52: 110.1039263 | E52: 101.9280984
B53: 2023-11-28 | C53: 85.81730769 | D53: 110.8105081 | E53: 101.9744891
B54: 2023-11-29 | C54: 86.69871795 | D54: 110.4841496 | E54: 102.020901
B55: 2023-11-30 | C55: 88.70192308 | D55: 111.5047687 | E55: 102.067334
B56: 2023-12-01 | C56: 88.14102564 | D56: 112.2524387 | E56: 102.113788
B57: 2023-12-04 | C57: 88.38141026 | D57: 111.0421064 | E57: 102.1602632
B58: 2023-12-05 | C58: 89.1025641 | D58: 111.1300799 | E58: 102.2067596
B59: 2023-12-06 | C59: 89.18269231 | D59: 110.0086493 | E59: 102.2532771
B60: 2023-12-07 | C60: 88.70192308 | D60: 110.3474779 | E60: 102.2998158
B61: 2023-12-08 | C61: 87.5 | D61: 111.2967445 | E61: 102.3463757
B62: 2023-12-11 | C62: 86.85897436 | D62: 111.1416042 | E62: 102.3929567
B63: 2023-12-12 | C63: 87.98076923 | D63: 110.6920337 | E63: 102.4395589
B64: 2023-12-13 | C64: 90.7051282 | D64: 113.3734927 | E64: 102.4861824
B65: 2023-12-14 | C65: 91.50641026 | D65: 114.5793501 | E65: 102.5310091
B66: 2023-12-15 | C66: 90.94551282 | D66: 114.0145278 | E66: 102.5758554
B67: 2023-12-18 | C67: 92.30769231 | D67: 114.7910348 | E67: 102.6207212
B68: 2023-12-19 | C68: 93.6698718 | D68: 115.4627722 | E68: 102.6656068
B69: 2023-12-20 | C69: 92.62820513 | D69: 114.5461433 | E69: 102.710512
B70: 2023-12-21 | C70: 92.06730769 | D70: 115.7527276 | E70: 102.7554367
B71: 2023-12-22 | C71: 93.0905495 | D71: 116.2526863 | E71: 102.8003812
B72: 2023-12-25
B73: 2023-12-26 | C73: 94.86611857 | D73: 116.9357291 | E73: 102.8453453
B74: 2023-12-27 | C74: 95.2043222 | D74: 117.5143964 | E74: 102.8903291
B75: 2023-12-28 | C75: 97.06444217 | D75: 117.5069704 | E75: 102.9353326
B76: 2023-12-29 | E76: 102.9803557
B77: 2024-01-01
B78: 2024-01-02 | C78: 95.88072946 | D78: 116.203384 | E78: 103.0253985
B79: 2024-01-03 | C79: 96.97989127 | D79: 116.3236361 | E79: 103.070461
B80: 2024-01-04 | C80: 96.55713673 | D80: 114.915464 | E80: 103.1155432
B81: 2024-01-05 | C81: 97.57174762 | D81: 115.6134114 | E81: 103.1606451
B82: 2024-01-08 | C82: 99.34731668 | D82: 115.9668643 | E82: 103.2057668
B83: 2024-01-09 | C83: 101.4610894 | D83: 115.1087151 | E83: 103.2509083
B84: 2024-01-10 | C84: 101.5456403 | D84: 114.5784744 | E84: 103.2960695
B85: 2024-01-11 | C85: 102.2220475 | D85: 114.4100409 | E85: 103.3412503
B86: 2024-01-12 | C86: 102.3065984 | D86: 114.7068356 | E86: 103.3864511
B87: 2024-01-15 | C87: 102.729353 | D87: 115.1737976 | E87: 103.4316715
B88: 2024-01-16 | C88: 100.1928258 | D88: 113.2237117 | E88: 103.4769118
B89: 2024-01-17 | C89: 100.3619276 | D89: 112.5492333 | E89: 103.5221718
B90: 2024-01-18 | C90: 98.4172567 | D90: 111.4913003 | E90: 103.5674516
B91: 2024-01-19 | C91: 97.48719671 | D91: 111.7714478 | E91: 103.6127513
B92: 2024-01-22 | C92: 96.64168763 | D92: 110.8658791 | E92: 103.6580707
B93: 2024-01-23 | C93: 97.65629853 | D93: 112.3204023 | E93: 103.7034099
B94: 2024-01-24 | C94: 98.07905307 | D94: 111.9291189 | E94: 103.7487689
B95: 2024-01-25 | C95: 98.58635851 | D95: 112.2382698 | E95: 103.7941479
B96: 2024-01-26 | C96: 98.4172567 | D96: 112.9376007 | E96: 103.8395466
B97: 2024-01-29 | C97: 98.5018076 | D97: 112.5306946 | E97: 103.8849652
B98: 2024-01-30 | C98: 97.23354399 | D98: 111.5666724 | E98: 103.9304037
B99: 2024-01-31 | C99: 97.4026458 | D99: 111.8735815 | E99: 103.9758621
B100: 2024-02-01 | C100: 99.09366396 | D100: 112.5117443 | E100: 104.0194877
B101: 2024-02-02 | C101: 96.04983128 | D101: 111.3744022 | E101: 104.0631316
B102: 2024-02-05 | C102: 96.13438219 | D102: 111.734528 | E102: 104.1067939
B103: 2024-02-06 | C103: 97.06444217 | D103: 114.2064916 | E103: 104.1504744
B104: 2024-02-07 | C104: 96.21893309 | D104: 113.798053 | E104: 104.1941733
B105: 2024-02-08 | C105: 94.95066948 | D105: 112.2804701 | E105: 104.2378904
B106: 2024-02-09 | C106: 96.21893309 | D106: 112.1130174 | E106: 104.2816259
B107: 2024-02-12
B108: 2024-02-13
B109: 2024-02-14 | C109: 95.45797492 | D109: 111.2308212 | E109: 104.3253797
B110: 2024-02-15 | C110: 96.81078945 | D110: 111.9189869 | E110: 104.3691519
B111: 2024-02-16 | C111: 98.58635851 | D111: 112.72617 | E111: 104.4129425
B112: 2024-02-19 | C112: 100.5310294 | D112: 112.9975166 | E112: 104.4567515
B113: 2024-02-20 | C113: 101.5456403 | D113: 113.7684629 | E113: 104.5005788
B114: 2024-02-21 | C114: 99.5164185 | D114: 113.8695808 | E114: 104.5444245
B115: 2024-02-22 | C115: 99.43186759 | D115: 114.0525773 | E115: 104.5882886
B116: 2024-02-23 | C116: 98.07905307 | D116: 113.3329037 | E116: 104.6321711
B117: 2024-02-26 | C117: 98.4172567 | D117: 113.4995682 | E117: 104.676072
B118: 2024-02-27 | C118: 99.34731668 | D118: 115.3213193 | E118: 104.7199914
B119: 2024-02-28 | C119: 100.2773767 | D119: 113.9780371 | E119: 104.7639293
B120: 2024-02-29 | C120: 101.2074367 | D120: 112.9837505 | E120: 104.8078855
B121: 2024-03-01 | C121: 102.1374966 | D121: 113.1241701 | E121: 104.8518602
B122: 2024-03-04 | C122: 100.869233 | D122: 112.388725 | E122: 104.8958534
B123: 2024-03-05 | C123: 100.7846821 | D123: 112.1764273 | E123: 104.939865
B124: 2024-03-06 | C124: 101.5456403 | D124: 112.8700924 | E124: 104.983895
B125: 2024-03-07 | C125: 99.85462213 | D125: 112.3880419 | E125: 105.0279435
B126: 2024-03-08 | C126: 101.2074367 | D126: 111.2767959 | E126: 105.0720105
B127: 2024-03-11 | C127: 100.1928258 | D127: 110.4472998 | E127: 105.116096
B128: 2024-03-12 | C128: 101.1228857 | D128: 111.7996368 | E128: 105.1601999
B129: 2024-03-13 | C129: 97.90995125 | D129: 112.0958097 | E129: 105.2043224
B130: 2024-03-14 | C130: 93.85150767 | D130: 111.8190162 | E130: 105.2484633
B131: 2024-03-15 | C131: 96.64168763 | D131: 110.9887057 | E131: 105.2926228
B132: 2024-03-18 | C132: 97.90995125 | D132: 111.1746797 | E132: 105.3368009
B133: 2024-03-19 | C133: 97.65629853 | D133: 111.6779223 | E133: 105.3809975
B134: 2024-03-20 | C134: 100.6155803 | D134: 113.0755333 | E134: 105.4252126
B135: 2024-03-21 | C135: 101.9683948 | D135: 112.2293726 | E135: 105.4675593
B136: 2024-03-22 | C136: 104.4203711 | D136: 111.2385362 | E136: 105.509923
B137: 2024-03-25 | C137: 105.1813293 | D137: 111.1547923 | E137: 105.5523038
B138: 2024-03-26 | C138: 105.434982 | D138: 111.0948502 | E138: 105.5947016
B139: 2024-03-27 | C139: 108.0554631 | D139: 111.8195854 | E139: 105.6371164
B140: 2024-03-28 | C140: 107.7124299 | D140: 112.1834242 | E140: 105.6795483
B141: 2024-03-29
B142: 2024-04-01 | C142: 108.8272879 | D142: 111.2064416 | E142: 105.7219972
B143: 2024-04-02 | C143: 108.7415295 | D143: 111.6951474 | E143: 105.7644632
B144: 2024-04-03 | C144: 109.1703211 | D144: 111.4936209 | E144: 105.8069462
B145: 2024-04-04 | C145: 110.9712454 | D145: 111.5891956 | E145: 105.8494463
B146: 2024-04-05 | C146: 110.3709373 | D146: 111.0356436 | E146: 105.8919633
B147: 2024-04-08 | C147: 111.9145868 | D147: 112.8411328 | E147: 105.9344975
B148: 2024-04-09 | C148: 114.1443027 | D148: 113.7459222 | E148: 105.9770488
B149: 2024-04-10 | C149: 112.6864115 | D149: 112.1375722 | E149: 106.0196172
B150: 2024-04-11 | C150: 112.4291366 | D150: 111.5618911 | E150: 106.0622027
B151: 2024-04-12 | C151: 110.1994207 | D151: 110.2918881 | E151: 106.1048052
B152: 2024-04-15 | C152: 111.2285204 | D152: 109.7557802 | E152: 106.147425
B153: 2024-04-16 | C153: 109.9421458 | D153: 108.9280005 | E153: 106.1900617
B154: 2024-04-17 | C154: 110.4566956 | D154: 108.7375605 | E154: 106.2327157
B155: 2024-04-18 | C155: 112.0003451 | D155: 108.7594794 | E155: 106.2753868
B156: 2024-04-19 | C156: 112.4291366 | D156: 109.5722407 | E156: 106.3180749
B157: 2024-04-22 | C157: 111.3142787 | D157: 109.9653106 | E157: 106.3607803
B158: 2024-04-23 | C158: 110.3709373 | D158: 109.5930563 | E158: 106.4035028
B159: 2024-04-24 | C159: 109.8563875 | D159: 109.2363107 | E159: 106.4462424
B160: 2024-04-25 | C160: 108.1412214 | D160: 109.1530222 | E160: 106.4889992
B161: 2024-04-26 | C161: 107.9697048 | D161: 110.7999558 | E161: 106.5317732
B162: 2024-04-29 | C162: 108.8272879 | D162: 111.5228696 | E162: 106.5745644
B163: 2024-04-30 | C163: 111.0415496 | D163: 110.2727101 | E163: 106.6173728
B164: 2024-05-01
B165: 2024-05-02 | C165: 118.0881986 | D165: 111.3218598 | E165: 106.6601984
B166: 2024-05-03 | C166: 119.5657218 | D166: 112.5359576 | E166: 106.7030412
B167: 2024-05-06 | C167: 118.5428211 | D167: 112.4983197 | E167: 106.7459012
B168: 2024-05-07 | C168: 117.2926092 | D168: 113.1505376 | E168: 106.7887783
B169: 2024-05-08 | C169: 118.2018542 | D169: 113.3873376 | E169: 106.8316727
B170: 2024-05-09 | C170: 116.8379867 | D170: 112.2554424 | E170: 106.8736252
B171: 2024-05-10 | C171: 115.1331522 | D171: 111.7398523 | E171: 106.915594
B172: 2024-05-13 | C172: 115.5877747 | D172: 112.2260624 | E172: 106.9575793
B173: 2024-05-14 | C173: 117.4062648 | D173: 112.5419299 | E173: 106.9995811
B174: 2024-05-15 | C174: 119.1110992 | D174: 112.1146724 | E174: 107.0415994
B175: 2024-05-16 | C175: 117.4062648 | D175: 112.3388797 | E175: 107.0836342
B176: 2024-05-17 | C176: 118.0881986 | D176: 112.2224895 | E176: 107.1256856
B177: 2024-05-20 | C177: 119.3384105 | D177: 111.8723906 | E177: 107.1677533
B178: 2024-05-21 | C178: 121.7251787 | D178: 111.5752018 | E178: 107.2098376
B179: 2024-05-22 | C179: 118.7701324 | D179: 110.0326262 | E179: 107.2519385
B180: 2024-05-23 | C180: 117.974543 | D180: 109.226424 | E180: 107.2940559
B181: 2024-05-24 | C181: 117.974543 | D181: 108.855273 | E181: 107.3361898
B182: 2024-05-27 | C182: 118.0881986 | D182: 109.0217537 | E182: 107.3783402
B183: 2024-05-28 | C183: 116.0423973 | D183: 108.3946248 | E183: 107.4205073
B184: 2024-05-29 | C184: 114.7921853 | D184: 107.4556391 | E184: 107.4626909
B185: 2024-05-30
B186: 2024-05-31 | C186: 113.0873509 | D186: 106.9221671 | E186: 107.5048911
B187: 2024-06-03 | C187: 115.5877747 | D187: 106.8639238 | E187: 107.5471078
B188: 2024-06-04 | C188: 116.4970198 | D188: 106.6629315 | E188: 107.5893411
B189: 2024-06-05 | C189: 117.0652979 | D189: 106.3172636 | E189: 107.631591
B190: 2024-06-06 | C190: 118.6564767 | D190: 107.6233545 | E190: 107.6738576
B191: 2024-06-07 | C191: 115.7014304 | D191: 105.7566884 | E191: 107.7161407
B192: 2024-06-10 | C192: 115.3604635 | D192: 105.749963 | E192: 107.7584404
B193: 2024-06-11 | C193: 116.3833642 | D193: 106.5166884 | E193: 107.8007567
B194: 2024-06-12 | C194: 113.3146622 | D194: 105.028827 | E194: 107.8430896
B195: 2024-06-13 | C195: 115.2468079 | D195: 104.7061376 | E195: 107.8854392
B196: 2024-06-14 | C196: 113.7692847 | D196: 104.7891985 | E196: 107.9278053
B197: 2024-06-17 | C197: 114.4512185 | D197: 104.3298726 | E197: 107.9701881
B198: 2024-06-18 | C198: 114.905841 | D198: 104.7612284 | E198: 108.0125876
B199: 2024-06-19 | C199: 115.9287416 | D199: 105.313712 | E199: 108.0550037
B200: 2024-06-20 | C200: 116.4970198 | D200: 105.4753413 | E200: 108.0974365
B201: 2024-06-21 | C201: 119.4520661 | D201: 106.2592918 | E201: 108.1398859
... 69 more rows
